{"text_format":"3","workbook":"xlsx","n_sheets":6,"sheets":["Informations","TDB_ETAB","TDB_CLASSES_FRA","TDB_CLASSES_MATH","EVA2PRO_FRANCAIS","EVA2PRO_MATHS"],"not_rendered":{"charts":51,"macros":1,"defined_names":5},"read":"whole","date_system":"1900"}

{"sheet":"Informations","index":0,"n_rows":50,"n_cols":6,"rows_kept":50}
["Informations de l'établissement :",null,{"$f":"LEFT(EVA2PRO_MATHS!C2,11)","v":""}]
[]
["1) Répartition des élèves évalués par classe"]
[]
["Classes *","Effectifs\nfrançais","%\nfrançais","Effectifs\nmaths","%\nmaths"]
[null,{"$f":"COUNTIF(EVA2PRO_FRANCAIS!A:A,$A6)","v":0},{"$f":"B6/B$26","v":{"$error":"#DIV/0!"}},{"$f":"COUNTIF(EVA2PRO_MATHS!A:A,$A6)","v":0},{"$f":"D6/D$26","v":{"$error":"#DIV/0!"}}]
[null,{"$f":"COUNTIF(EVA2PRO_FRANCAIS!A:A,$A7)","v":0},{"$error":"#DIV/0!"},{"$f":"COUNTIF(EVA2PRO_MATHS!A:A,$A7)","v":0},{"$error":"#DIV/0!"}]
[null,{"$f":"COUNTIF(EVA2PRO_FRANCAIS!A:A,$A8)","v":0},{"$error":"#DIV/0!"},{"$f":"COUNTIF(EVA2PRO_MATHS!A:A,$A8)","v":0},{"$error":"#DIV/0!"}]
[null,{"$f":"COUNTIF(EVA2PRO_FRANCAIS!A:A,$A9)","v":0},{"$error":"#DIV/0!"},{"$f":"COUNTIF(EVA2PRO_MATHS!A:A,$A9)","v":0},{"$error":"#DIV/0!"}]
[null,{"$f":"COUNTIF(EVA2PRO_FRANCAIS!A:A,$A10)","v":0},{"$error":"#DIV/0!"},{"$f":"COUNTIF(EVA2PRO_MATHS!A:A,$A10)","v":0},{"$error":"#DIV/0!"}]
[null,{"$f":"COUNTIF(EVA2PRO_FRANCAIS!A:A,$A11)","v":0},{"$error":"#DIV/0!"},{"$f":"COUNTIF(EVA2PRO_MATHS!A:A,$A11)","v":0},{"$error":"#DIV/0!"}]
[null,{"$f":"COUNTIF(EVA2PRO_FRANCAIS!A:A,$A12)","v":0},{"$error":"#DIV/0!"},{"$f":"COUNTIF(EVA2PRO_MATHS!A:A,$A12)","v":0},{"$error":"#DIV/0!"}]
[null,{"$f":"COUNTIF(EVA2PRO_FRANCAIS!A:A,$A13)","v":0},{"$error":"#DIV/0!"},{"$f":"COUNTIF(EVA2PRO_MATHS!A:A,$A13)","v":0},{"$error":"#DIV/0!"}]
[null,{"$f":"COUNTIF(EVA2PRO_FRANCAIS!A:A,$A14)","v":0},{"$error":"#DIV/0!"},{"$f":"COUNTIF(EVA2PRO_MATHS!A:A,$A14)","v":0},{"$error":"#DIV/0!"}]
[null,{"$f":"COUNTIF(EVA2PRO_FRANCAIS!A:A,$A15)","v":0},{"$error":"#DIV/0!"},{"$f":"COUNTIF(EVA2PRO_MATHS!A:A,$A15)","v":0},{"$error":"#DIV/0!"}]
[null,{"$f":"COUNTIF(EVA2PRO_FRANCAIS!A:A,$A16)","v":0},{"$error":"#DIV/0!"},{"$f":"COUNTIF(EVA2PRO_MATHS!A:A,$A16)","v":0},{"$error":"#DIV/0!"}]
[null,{"$f":"COUNTIF(EVA2PRO_FRANCAIS!A:A,$A17)","v":0},{"$error":"#DIV/0!"},{"$f":"COUNTIF(EVA2PRO_MATHS!A:A,$A17)","v":0},{"$error":"#DIV/0!"}]
[null,{"$f":"COUNTIF(EVA2PRO_FRANCAIS!A:A,$A18)","v":0},{"$error":"#DIV/0!"},{"$f":"COUNTIF(EVA2PRO_MATHS!A:A,$A18)","v":0},{"$error":"#DIV/0!"}]
[null,{"$f":"COUNTIF(EVA2PRO_FRANCAIS!A:A,$A19)","v":0},{"$f":"B19/B$26","v":{"$error":"#DIV/0!"}},{"$f":"COUNTIF(EVA2PRO_MATHS!A:A,$A19)","v":0},{"$f":"D19/D$26","v":{"$error":"#DIV/0!"}}]
[null,{"$f":"COUNTIF(EVA2PRO_FRANCAIS!A:A,$A20)","v":0},{"$error":"#DIV/0!"},{"$f":"COUNTIF(EVA2PRO_MATHS!A:A,$A20)","v":0},{"$error":"#DIV/0!"}]
[null,{"$f":"COUNTIF(EVA2PRO_FRANCAIS!A:A,$A21)","v":0},{"$error":"#DIV/0!"},{"$f":"COUNTIF(EVA2PRO_MATHS!A:A,$A21)","v":0},{"$error":"#DIV/0!"}]
[null,{"$f":"COUNTIF(EVA2PRO_FRANCAIS!A:A,$A22)","v":0},{"$error":"#DIV/0!"},{"$f":"COUNTIF(EVA2PRO_MATHS!A:A,$A22)","v":0},{"$error":"#DIV/0!"}]
[null,{"$f":"COUNTIF(EVA2PRO_FRANCAIS!A:A,$A23)","v":0},{"$error":"#DIV/0!"},{"$f":"COUNTIF(EVA2PRO_MATHS!A:A,$A23)","v":0},{"$error":"#DIV/0!"}]
[null,{"$f":"COUNTIF(EVA2PRO_FRANCAIS!A:A,$A24)","v":0},{"$error":"#DIV/0!"},{"$f":"COUNTIF(EVA2PRO_MATHS!A:A,$A24)","v":0},{"$error":"#DIV/0!"}]
[null,{"$f":"COUNTIF(EVA2PRO_FRANCAIS!A:A,$A25)","v":0},{"$error":"#DIV/0!"},{"$f":"COUNTIF(EVA2PRO_MATHS!A:A,$A25)","v":0},{"$error":"#DIV/0!"}]
["Total établissement",{"$f":"SUM(B6:B25)","v":0},{"$error":"#DIV/0!"},{"$f":"SUM(D6:D25)","v":0},{"$f":"D26/D$26","v":{"$error":"#DIV/0!"}}]
["* noms des classes à compléter comme suit :"]
["     - saisir à l'identique les noms de classes utilisés par ASP (vous pouvez les retrouver dans l'onglet \"EVA2NDPRO_FRANCAIS\")"]
["     - ne pas modifier les lignes non utilisées"]
[]
[]
["2) Résultats par classe exprimés en effectifs d'élèves selon les niveaux de maîtrise suivants :"]
[]
["à besoins"]
["fragile"]
["satisfaisant"]
[]
[]
[]
[]
["Résultats par classe exprimés en pourcentages mis en forme en fonction des résultats des élèves comparés à ceux de l'établissement :"]
[]
["- Pour les niveaux de maîtrise à besoins :"]
[null,"En rouge ","les taux de ",{"$f":"E49","v":5},"% supérieur à ceux de l'ensemble de l'établissement"]
[null,"En vert","les taux de ",{"$f":"E49","v":5},"% inférieur à ceux de l'ensemble de l'établissement "]
["- Pour les niveaux de maîtrise satisfaisante, à l'inverse :"]
[null,"En rouge ","les taux de ",{"$f":"E49","v":5},"% inférieur à ceux de l'ensemble de l'établissement"]
[null,"En vert","les taux de ",{"$f":"E49","v":5},"%supérieur à ceux de l'ensemble de l'établissement "]
["Ecart** de taux pour la mise en forme conditionnelle :",{"$nulls":3},5,"%"]
["** Par défaut, l'écart de taux est de 5%. Vous pouvez le modifier en saisissant celui qui vous convient dans la cellule colorée ci-dessus. "]

{"sheet":"TDB_ETAB","index":1,"n_rows":34,"n_cols":6,"rows_kept":34}
["Tableau de bord de l'établissement:",null,"0070010Y"]
[]
["Français","Répartition des effectifs d'élèves pour chaque compétence"]
[]
["Niveau de maîtrise","Compréhension de l'oral\nComprendre un message oral","Test spécifique de compréhension de l'écrit\nComprendre un texte","Etude de la langue\nMobiliser ses connaissances en grammaire pour analyser des phrases","Etude de la langue\nMaîtriser l'orthographe","Etude de la langue\nComprendre et mobiliser le lexique"]
["Nb \"à besoins\"",{"$f":"COUNTIF(EVA2PRO_FRANCAIS!D:D,\"à besoins\")","v":0},{"$f":"COUNTIF(EVA2PRO_FRANCAIS!E:E,\"à besoins\")","v":0},{"$f":"COUNTIF(EVA2PRO_FRANCAIS!F:F,\"à besoins\")","v":0},{"$f":"COUNTIF(EVA2PRO_FRANCAIS!G:G,\"à besoins\")","v":0},{"$f":"COUNTIF(EVA2PRO_FRANCAIS!H:H,\"à besoins\")","v":0}]
["Nb \"fragile\"",{"$f":"COUNTIF(EVA2PRO_FRANCAIS!D:D,\"fragile\")","v":0},{"$f":"COUNTIF(EVA2PRO_FRANCAIS!E:E,\"fragile\")","v":0},{"$f":"COUNTIF(EVA2PRO_FRANCAIS!F:F,\"fragile\")","v":0},{"$f":"COUNTIF(EVA2PRO_FRANCAIS!G:G,\"fragile\")","v":0},{"$f":"COUNTIF(EVA2PRO_FRANCAIS!H:H,\"fragile\")","v":0}]
["Nb \"satisfaisant\"",{"$f":"COUNTIF(EVA2PRO_FRANCAIS!D:D,\"satisfaisant\")","v":0},{"$f":"COUNTIF(EVA2PRO_FRANCAIS!E:E,\"satisfaisant\")","v":0},{"$f":"COUNTIF(EVA2PRO_FRANCAIS!F:F,\"satisfaisant\")","v":0},{"$f":"COUNTIF(EVA2PRO_FRANCAIS!G:G,\"satisfaisant\")","v":0},{"$f":"COUNTIF(EVA2PRO_FRANCAIS!H:H,\"satisfaisant\")","v":0}]
["Total élèves évalués ",{"$f":"SUM(B6:B8)","v":0},{"$f":"SUM(C6:C8)","v":0},0,0,0]
[]
[null,"Répartition des proportions d'élèves pour chaque compétence"]
[]
["Niveau de maîtrise","Compréhension de l'oral\nComprendre un message oral","Test spécifique de compréhension de l'écrit\nComprendre un texte","Étude de la langue\nSe repérer dans une phrase et identifier sa composition","Étude de la langue\nMaîtriser l'orthographe","Test spécifique en étude de la langue - lexique\nComprendre et mobiliser le lexique"]
["Taux \"à besoins\"",{"$f":"B6/B$9","v":{"$error":"#DIV/0!"}},{"$f":"C6/C$9","v":{"$error":"#DIV/0!"}},{"$error":"#DIV/0!"},{"$error":"#DIV/0!"},{"$error":"#DIV/0!"}]
["Taux \"fragile\"",{"$f":"B7/B$9","v":{"$error":"#DIV/0!"}},{"$f":"C7/C$9","v":{"$error":"#DIV/0!"}},{"$error":"#DIV/0!"},{"$error":"#DIV/0!"},{"$error":"#DIV/0!"}]
["Taux \"satisfaisant\"",{"$f":"B8/B$9","v":{"$error":"#DIV/0!"}},{"$f":"C8/C$9","v":{"$error":"#DIV/0!"}},{"$f":"D8/D$9","v":{"$error":"#DIV/0!"}},{"$error":"#DIV/0!"},{"$error":"#DIV/0!"}]
["Total élèves évalués ",{"$f":"B9/B$9","v":{"$error":"#DIV/0!"}},{"$f":"C9/C$9","v":{"$error":"#DIV/0!"}},{"$f":"D9/D$9","v":{"$error":"#DIV/0!"}},{"$error":"#DIV/0!"},{"$error":"#DIV/0!"}]
[]
[]
["Mathématiques","Répartition des effectifs d'élèves"]
[]
["Niveau de maîtrise","Test spécifique en automatismes\nMobiliser directement des procédures et des connaissances","Espace et géométrie\nConnaître et utiliser des notions de géométrie","Nombres et calculs\nConnaître les nombres et les utiliser dans des calculs","Organisation et gestion de données, fonctions\nConnaître et utiliser des données et la notion de fonction"]
["Nb \"à besoins\"",{"$f":"COUNTIF(EVA2PRO_MATHS!D:D,\"à besoins\")","v":0},{"$f":"COUNTIF(EVA2PRO_MATHS!E:E,\"à besoins\")","v":0},{"$f":"COUNTIF(EVA2PRO_MATHS!F:F,\"à besoins\")","v":0},{"$f":"COUNTIF(EVA2PRO_MATHS!G:G,\"à besoins\")","v":0}]
["Nb \"fragile\"",{"$f":"COUNTIF(EVA2PRO_MATHS!D:D,\"fragile\")","v":0},{"$f":"COUNTIF(EVA2PRO_MATHS!E:E,\"fragile\")","v":0},{"$f":"COUNTIF(EVA2PRO_MATHS!F:F,\"fragile\")","v":0},{"$f":"COUNTIF(EVA2PRO_MATHS!G:G,\"fragile\")","v":0}]
["Nb \"satisfaisant\"",{"$f":"COUNTIF(EVA2PRO_MATHS!D:D,\"satisfaisant\")","v":0},{"$f":"COUNTIF(EVA2PRO_MATHS!E:E,\"satisfaisant\")","v":0},{"$f":"COUNTIF(EVA2PRO_MATHS!F:F,\"satisfaisant\")","v":0},{"$f":"COUNTIF(EVA2PRO_MATHS!G:G,\"satisfaisant\")","v":0}]
["Total élèves évalués ",{"$f":"SUM(B23:B25)","v":0},{"$f":"SUM(C23:C25)","v":0},0,0]
[]
[null,"Répartition des proportions d'élèves"]
[]
["Niveau de maîtrise","Test spécifique en automatismes\nMobiliser directement des procédures et des connaissances","Espace et géométrie\nConnaître et utiliser des notions de géométrie","Expressions algébriques\nUtiliser des expressions littérales pour traduire ou résoudre des problèmes","Nombres et calculs\nConnaître les nombres et les utiliser dans des calculs"]
["Taux \"à besoins\"",{"$f":"B23/B$26","v":{"$error":"#DIV/0!"}},{"$f":"C23/C$26","v":{"$error":"#DIV/0!"}},{"$error":"#DIV/0!"},{"$error":"#DIV/0!"}]
["Taux \"fragile\"",{"$f":"B24/B$26","v":{"$error":"#DIV/0!"}},{"$f":"C24/C$26","v":{"$error":"#DIV/0!"}},{"$error":"#DIV/0!"},{"$error":"#DIV/0!"}]
["Taux \"satisfaisant\"",{"$f":"B25/B$26","v":{"$error":"#DIV/0!"}},{"$f":"C25/C$26","v":{"$error":"#DIV/0!"}},{"$error":"#DIV/0!"},{"$error":"#DIV/0!"}]
["Total élèves évalués ",{"$f":"B26/B$26","v":{"$error":"#DIV/0!"}},{"$f":"C26/C$26","v":{"$error":"#DIV/0!"}},{"$error":"#DIV/0!"},{"$error":"#DIV/0!"}]

{"sheet":"TDB_CLASSES_FRA","index":2,"n_rows":269,"n_cols":6,"rows_kept":269}
["Tableau de bord de l'établissement :",{"$f":"RIGHT(C1,8)","v":"0"},{"$f":"TDB_ETAB!B1","v":0},null,{"v":0,"d":"0.0%"}]
[]
["Français","Répartition des proportions d'élèves pour chaque compétence (Rappel TDB_ETAB)"]
[null,"Compréhension de l'oral"]
["Référence : Lycée","Compréhension de l'oral\nComprendre un message oral","Test spécifique de compréhension de l'écrit\nComprendre un texte","Etude de la langue\nMobiliser ses connaissances en grammaire pour analyser des phrases","Etude de la langue\nMaîtriser l'orthographe","Etude de la langue\nComprendre et mobiliser le lexique"]
["Taux \"à besoins\"",{"$f":"TDB_ETAB!B14","v":{"$error":"#DIV/0!"}},{"$f":"TDB_ETAB!C14","v":{"$error":"#DIV/0!"}},{"$f":"TDB_ETAB!D14","v":{"$error":"#DIV/0!"}},{"$f":"TDB_ETAB!E14","v":{"$error":"#DIV/0!"}},{"$f":"TDB_ETAB!F14","v":{"$error":"#DIV/0!"}}]
["Taux \"fragile\"",{"$f":"TDB_ETAB!B15","v":{"$error":"#DIV/0!"}},{"$f":"TDB_ETAB!C15","v":{"$error":"#DIV/0!"}},{"$f":"TDB_ETAB!D15","v":{"$error":"#DIV/0!"}},{"$f":"TDB_ETAB!E15","v":{"$error":"#DIV/0!"}},{"$f":"TDB_ETAB!F15","v":{"$error":"#DIV/0!"}}]
["Taux \"satisfaisant\"",{"$f":"TDB_ETAB!B16","v":{"$error":"#DIV/0!"}},{"$f":"TDB_ETAB!C16","v":{"$error":"#DIV/0!"}},{"$f":"TDB_ETAB!D16","v":{"$error":"#DIV/0!"}},{"$f":"TDB_ETAB!E16","v":{"$error":"#DIV/0!"}},{"$f":"TDB_ETAB!F16","v":{"$error":"#DIV/0!"}}]
["Total élèves évalués ",{"$f":"TDB_ETAB!B17","v":{"$error":"#DIV/0!"}},{"$f":"TDB_ETAB!C17","v":{"$error":"#DIV/0!"}},{"$f":"TDB_ETAB!D17","v":{"$error":"#DIV/0!"}},{"$f":"TDB_ETAB!E17","v":{"$error":"#DIV/0!"}},{"$f":"TDB_ETAB!F17","v":{"$error":"#DIV/0!"}}]
[]
[]
[{"$f":"CONCATENATE(\"Classe : \",Informations!$A$6)","v":"Classe : "},"Compréhension de l'oral\nComprendre un message oral","Test spécifique de compréhension de l'écrit\nComprendre un texte","Etude de la langue\nMobiliser ses connaissances en grammaire pour analyser des phrases","Etude de la langue\nMaîtriser l'orthographe","Etude de la langue\nComprendre et mobiliser le lexique"]
["Nb \"à besoins\"",{"$f":"COUNTIF(EVA2PRO_FRANCAIS!J:J,CONCATENATE(Informations!$A$6,\" \",Informations!$A$34))","v":0},{"$f":"COUNTIF(EVA2PRO_FRANCAIS!K:K,CONCATENATE(Informations!$A$6,\" \",Informations!$A$34))","v":0},{"$f":"COUNTIF(EVA2PRO_FRANCAIS!L:L,CONCATENATE(Informations!$A$6,\" \",Informations!$A$34))","v":0},{"$f":"COUNTIF(EVA2PRO_FRANCAIS!M:M,CONCATENATE(Informations!$A$6,\" \",Informations!$A$34))","v":0},{"$f":"COUNTIF(EVA2PRO_FRANCAIS!N:N,CONCATENATE(Informations!$A$6,\" \",Informations!$A$34))","v":0}]
["Nb \"fragile\"",{"$f":"COUNTIF(EVA2PRO_FRANCAIS!J:J,CONCATENATE(Informations!$A$6,\" \",Informations!$A$35))","v":0},{"$f":"COUNTIF(EVA2PRO_FRANCAIS!K:K,CONCATENATE(Informations!$A$6,\" \",Informations!$A$35))","v":0},{"$f":"COUNTIF(EVA2PRO_FRANCAIS!L:L,CONCATENATE(Informations!$A$6,\" \",Informations!$A$35))","v":0},{"$f":"COUNTIF(EVA2PRO_FRANCAIS!M:M,CONCATENATE(Informations!$A$6,\" \",Informations!$A$35))","v":0},{"$f":"COUNTIF(EVA2PRO_FRANCAIS!N:N,CONCATENATE(Informations!$A$6,\" \",Informations!$A$35))","v":0}]
["Nb \"satisfaisant\"",{"$f":"COUNTIF(EVA2PRO_FRANCAIS!J:J,CONCATENATE(Informations!$A$6,\" \",Informations!$A$36))","v":0},{"$f":"COUNTIF(EVA2PRO_FRANCAIS!K:K,CONCATENATE(Informations!$A$6,\" \",Informations!$A$36))","v":0},{"$f":"COUNTIF(EVA2PRO_FRANCAIS!L:L,CONCATENATE(Informations!$A$6,\" \",Informations!$A$36))","v":0},{"$f":"COUNTIF(EVA2PRO_FRANCAIS!M:M,CONCATENATE(Informations!$A$6,\" \",Informations!$A$36))","v":0},{"$f":"COUNTIF(EVA2PRO_FRANCAIS!N:N,CONCATENATE(Informations!$A$6,\" \",Informations!$A$36))","v":0}]
["Total élèves évalués ",{"$f":"SUM(B13:B15)","v":0},{"$f":"SUM(C13:C15)","v":0},0,0,0]
[]
[{"$f":"CONCATENATE(\"Classe : \",Informations!$A$6)","v":"Classe : "},"Compréhension de l'oral\nComprendre un message oral","Test spécifique de compréhension de l'écrit\nComprendre un texte","Etude de la langue\nMobiliser ses connaissances en grammaire pour analyser des phrases","Etude de la langue\nMaîtriser l'orthographe","Etude de la langue\nComprendre et mobiliser le lexique"]
["Taux \"à besoins\"",{"$f":"B13/B$16","v":{"$error":"#DIV/0!"}},{"$f":"C13/C$16","v":{"$error":"#DIV/0!"}},{"$error":"#DIV/0!"},{"$error":"#DIV/0!"},{"$error":"#DIV/0!"}]
["Taux \"fragile\"",{"$f":"B14/B$16","v":{"$error":"#DIV/0!"}},{"$f":"C14/C$16","v":{"$error":"#DIV/0!"}},{"$error":"#DIV/0!"},{"$error":"#DIV/0!"},{"$error":"#DIV/0!"}]
["Taux \"satisfaisant\"",{"$f":"B15/B$16","v":{"$error":"#DIV/0!"}},{"$f":"C15/C$16","v":{"$error":"#DIV/0!"}},{"$error":"#DIV/0!"},{"$error":"#DIV/0!"},{"$error":"#DIV/0!"}]
["Total élèves évalués ",{"$f":"B16/B$16","v":{"$error":"#DIV/0!"}},{"$f":"C16/C$16","v":{"$error":"#DIV/0!"}},{"$error":"#DIV/0!"},{"$error":"#DIV/0!"},{"$error":"#DIV/0!"}]
[]
[]
[{"$f":"CONCATENATE(\"Classe : \",Informations!$A$7)","v":"Classe : "},"Compréhension de l'oral\nComprendre un message oral","Test spécifique de compréhension de l'écrit\nComprendre un texte","Etude de la langue\nMobiliser ses connaissances en grammaire pour analyser des phrases","Etude de la langue\nMaîtriser l'orthographe","Etude de la langue\nComprendre et mobiliser le lexique"]
["Nb \"à besoins\"",{"$f":"COUNTIF(EVA2PRO_FRANCAIS!J:J,CONCATENATE(Informations!$A$7,\" \",Informations!$A$34))","v":0},{"$f":"COUNTIF(EVA2PRO_FRANCAIS!K:K,CONCATENATE(Informations!$A$7,\" \",Informations!$A$34))","v":0},{"$f":"COUNTIF(EVA2PRO_FRANCAIS!L:L,CONCATENATE(Informations!$A$7,\" \",Informations!$A$34))","v":0},{"$f":"COUNTIF(EVA2PRO_FRANCAIS!M:M,CONCATENATE(Informations!$A$7,\" \",Informations!$A$34))","v":0},{"$f":"COUNTIF(EVA2PRO_FRANCAIS!N:N,CONCATENATE(Informations!$A$7,\" \",Informations!$A$34))","v":0}]
["Nb \"fragile\"",{"$f":"COUNTIF(EVA2PRO_FRANCAIS!J:J,CONCATENATE(Informations!$A$7,\" \",Informations!$A$35))","v":0},{"$f":"COUNTIF(EVA2PRO_FRANCAIS!K:K,CONCATENATE(Informations!$A$7,\" \",Informations!$A$35))","v":0},{"$f":"COUNTIF(EVA2PRO_FRANCAIS!L:L,CONCATENATE(Informations!$A$7,\" \",Informations!$A$35))","v":0},{"$f":"COUNTIF(EVA2PRO_FRANCAIS!M:M,CONCATENATE(Informations!$A$7,\" \",Informations!$A$35))","v":0},{"$f":"COUNTIF(EVA2PRO_FRANCAIS!N:N,CONCATENATE(Informations!$A$7,\" \",Informations!$A$35))","v":0}]
["Nb \"satisfaisant\"",{"$f":"COUNTIF(EVA2PRO_FRANCAIS!J:J,CONCATENATE(Informations!$A$7,\" \",Informations!$A$36))","v":0},{"$f":"COUNTIF(EVA2PRO_FRANCAIS!K:K,CONCATENATE(Informations!$A$7,\" \",Informations!$A$36))","v":0},{"$f":"COUNTIF(EVA2PRO_FRANCAIS!L:L,CONCATENATE(Informations!$A$7,\" \",Informations!$A$36))","v":0},{"$f":"COUNTIF(EVA2PRO_FRANCAIS!M:M,CONCATENATE(Informations!$A$7,\" \",Informations!$A$36))","v":0},{"$f":"COUNTIF(EVA2PRO_FRANCAIS!N:N,CONCATENATE(Informations!$A$7,\" \",Informations!$A$36))","v":0}]
["Total élèves évalués ",{"$f":"SUM(B26:B28)","v":0},0,0,0,0]
[]
[{"$f":"CONCATENATE(\"Classe : \",Informations!$A$7)","v":"Classe : "},"Compréhension de l'oral\nComprendre un message oral","Test spécifique de compréhension de l'écrit\nComprendre un texte","Etude de la langue\nMobiliser ses connaissances en grammaire pour analyser des phrases","Etude de la langue\nMaîtriser l'orthographe","Etude de la langue\nComprendre et mobiliser le lexique"]
["Taux \"à besoins\"",{"$f":"B26/B$29","v":{"$error":"#DIV/0!"}},{"$f":"C26/C$29","v":{"$error":"#DIV/0!"}},{"$error":"#DIV/0!"},{"$error":"#DIV/0!"},{"$error":"#DIV/0!"}]
["Taux \"fragile\"",{"$f":"B27/B$29","v":{"$error":"#DIV/0!"}},{"$f":"C27/C$29","v":{"$error":"#DIV/0!"}},{"$error":"#DIV/0!"},{"$error":"#DIV/0!"},{"$f":"F27/F$29","v":{"$error":"#DIV/0!"}}]
["Taux \"satisfaisant\"",{"$f":"B28/B$29","v":{"$error":"#DIV/0!"}},{"$f":"C28/C$29","v":{"$error":"#DIV/0!"}},{"$error":"#DIV/0!"},{"$error":"#DIV/0!"},{"$error":"#DIV/0!"}]
["Total élèves évalués ",{"$f":"B29/B$29","v":{"$error":"#DIV/0!"}},{"$f":"C29/C$29","v":{"$error":"#DIV/0!"}},{"$error":"#DIV/0!"},{"$error":"#DIV/0!"},{"$error":"#DIV/0!"}]
[]
[]
[{"$f":"CONCATENATE(\"Classe : \",Informations!$A$8)","v":"Classe : "},"Compréhension de l'oral\nComprendre un message oral","Test spécifique de compréhension de l'écrit\nComprendre un texte","Etude de la langue\nMobiliser ses connaissances en grammaire pour analyser des phrases","Etude de la langue\nMaîtriser l'orthographe","Etude de la langue\nComprendre et mobiliser le lexique"]
["Nb \"à besoins\"",{"$f":"COUNTIF(EVA2PRO_FRANCAIS!J:J,CONCATENATE(Informations!$A$8,\" \",Informations!$A$34))","v":0},{"$f":"COUNTIF(EVA2PRO_FRANCAIS!K:K,CONCATENATE(Informations!$A$8,\" \",Informations!$A$34))","v":0},{"$f":"COUNTIF(EVA2PRO_FRANCAIS!L:L,CONCATENATE(Informations!$A$8,\" \",Informations!$A$34))","v":0},{"$f":"COUNTIF(EVA2PRO_FRANCAIS!M:M,CONCATENATE(Informations!$A$8,\" \",Informations!$A$34))","v":0},{"$f":"COUNTIF(EVA2PRO_FRANCAIS!N:N,CONCATENATE(Informations!$A$8,\" \",Informations!$A$34))","v":0}]
["Nb \"fragile\"",{"$f":"COUNTIF(EVA2PRO_FRANCAIS!J:J,CONCATENATE(Informations!$A$8,\" \",Informations!$A$35))","v":0},{"$f":"COUNTIF(EVA2PRO_FRANCAIS!K:K,CONCATENATE(Informations!$A$8,\" \",Informations!$A$35))","v":0},{"$f":"COUNTIF(EVA2PRO_FRANCAIS!L:L,CONCATENATE(Informations!$A$8,\" \",Informations!$A$35))","v":0},{"$f":"COUNTIF(EVA2PRO_FRANCAIS!M:M,CONCATENATE(Informations!$A$8,\" \",Informations!$A$35))","v":0},{"$f":"COUNTIF(EVA2PRO_FRANCAIS!N:N,CONCATENATE(Informations!$A$8,\" \",Informations!$A$35))","v":0}]
["Nb \"satisfaisant\"",{"$f":"COUNTIF(EVA2PRO_FRANCAIS!J:J,CONCATENATE(Informations!$A$8,\" \",Informations!$A$36))","v":0},{"$f":"COUNTIF(EVA2PRO_FRANCAIS!K:K,CONCATENATE(Informations!$A$8,\" \",Informations!$A$36))","v":0},{"$f":"COUNTIF(EVA2PRO_FRANCAIS!L:L,CONCATENATE(Informations!$A$8,\" \",Informations!$A$36))","v":0},{"$f":"COUNTIF(EVA2PRO_FRANCAIS!M:M,CONCATENATE(Informations!$A$8,\" \",Informations!$A$36))","v":0},{"$f":"COUNTIF(EVA2PRO_FRANCAIS!N:N,CONCATENATE(Informations!$A$8,\" \",Informations!$A$36))","v":0}]
["Total élèves évalués ",{"$f":"SUM(B39:B41)","v":0},{"$f":"SUM(C39:C41)","v":0},0,0,0]
[]
[{"$f":"CONCATENATE(\"Classe : \",Informations!$A$8)","v":"Classe : "},"Compréhension de l'oral\nComprendre un message oral","Test spécifique de compréhension de l'écrit\nComprendre un texte","Etude de la langue\nMobiliser ses connaissances en grammaire pour analyser des phrases","Etude de la langue\nMaîtriser l'orthographe","Etude de la langue\nComprendre et mobiliser le lexique"]
["Taux \"à besoins\"",{"$f":"B39/B$42","v":{"$error":"#DIV/0!"}},{"$f":"C39/C$42","v":{"$error":"#DIV/0!"}},{"$error":"#DIV/0!"},{"$error":"#DIV/0!"},{"$error":"#DIV/0!"}]
["Taux \"fragile\"",{"$f":"B40/B$42","v":{"$error":"#DIV/0!"}},{"$f":"C40/C$42","v":{"$error":"#DIV/0!"}},{"$error":"#DIV/0!"},{"$error":"#DIV/0!"},{"$error":"#DIV/0!"}]
["Taux \"satisfaisant\"",{"$f":"B41/B$42","v":{"$error":"#DIV/0!"}},{"$f":"C41/C$42","v":{"$error":"#DIV/0!"}},{"$error":"#DIV/0!"},{"$error":"#DIV/0!"},{"$error":"#DIV/0!"}]
["Total élèves évalués ",{"$f":"B42/B$42","v":{"$error":"#DIV/0!"}},{"$f":"C42/C$42","v":{"$error":"#DIV/0!"}},{"$error":"#DIV/0!"},{"$error":"#DIV/0!"},{"$error":"#DIV/0!"}]
[]
[]
[{"$f":"CONCATENATE(\"Classe : \",Informations!$A$9)","v":"Classe : "},"Compréhension de l'oral\nComprendre un message oral","Test spécifique de compréhension de l'écrit\nComprendre un texte","Etude de la langue\nMobiliser ses connaissances en grammaire pour analyser des phrases","Etude de la langue\nMaîtriser l'orthographe","Etude de la langue\nComprendre et mobiliser le lexique"]
["Nb \"à besoins\"",{"$f":"COUNTIF(EVA2PRO_FRANCAIS!J:J,CONCATENATE(Informations!$A$9,\" \",Informations!$A$34))","v":0},{"$f":"COUNTIF(EVA2PRO_FRANCAIS!K:K,CONCATENATE(Informations!$A$9,\" \",Informations!$A$34))","v":0},{"$f":"COUNTIF(EVA2PRO_FRANCAIS!L:L,CONCATENATE(Informations!$A$9,\" \",Informations!$A$34))","v":0},{"$f":"COUNTIF(EVA2PRO_FRANCAIS!M:M,CONCATENATE(Informations!$A$9,\" \",Informations!$A$34))","v":0},{"$f":"COUNTIF(EVA2PRO_FRANCAIS!N:N,CONCATENATE(Informations!$A$9,\" \",Informations!$A$34))","v":0}]
["Nb \"fragile\"",{"$f":"COUNTIF(EVA2PRO_FRANCAIS!J:J,CONCATENATE(Informations!$A$9,\" \",Informations!$A$35))","v":0},{"$f":"COUNTIF(EVA2PRO_FRANCAIS!K:K,CONCATENATE(Informations!$A$9,\" \",Informations!$A$35))","v":0},{"$f":"COUNTIF(EVA2PRO_FRANCAIS!L:L,CONCATENATE(Informations!$A$9,\" \",Informations!$A$35))","v":0},{"$f":"COUNTIF(EVA2PRO_FRANCAIS!M:M,CONCATENATE(Informations!$A$9,\" \",Informations!$A$35))","v":0},{"$f":"COUNTIF(EVA2PRO_FRANCAIS!N:N,CONCATENATE(Informations!$A$9,\" \",Informations!$A$35))","v":0}]
["Nb \"satisfaisant\"",{"$f":"COUNTIF(EVA2PRO_FRANCAIS!J:J,CONCATENATE(Informations!$A$9,\" \",Informations!$A$36))","v":0},{"$f":"COUNTIF(EVA2PRO_FRANCAIS!K:K,CONCATENATE(Informations!$A$9,\" \",Informations!$A$36))","v":0},{"$f":"COUNTIF(EVA2PRO_FRANCAIS!L:L,CONCATENATE(Informations!$A$9,\" \",Informations!$A$36))","v":0},{"$f":"COUNTIF(EVA2PRO_FRANCAIS!M:M,CONCATENATE(Informations!$A$9,\" \",Informations!$A$36))","v":0},{"$f":"COUNTIF(EVA2PRO_FRANCAIS!N:N,CONCATENATE(Informations!$A$9,\" \",Informations!$A$36))","v":0}]
["Total élèves évalués ",{"$f":"SUM(B52:B54)","v":0},{"$f":"SUM(C52:C54)","v":0},0,0,0]
[]
[null,"Compréhension de l'oral\nComprendre un message oral","Test spécifique de compréhension de l'écrit\nComprendre un texte","Etude de la langue\nMobiliser ses connaissances en grammaire pour analyser des phrases","Etude de la langue\nMaîtriser l'orthographe","Etude de la langue\nComprendre et mobiliser le lexique"]
["Taux \"à besoins\"",{"$f":"B52/B$55","v":{"$error":"#DIV/0!"}},{"$f":"C52/C$55","v":{"$error":"#DIV/0!"}},{"$error":"#DIV/0!"},{"$error":"#DIV/0!"},{"$error":"#DIV/0!"}]
["Taux \"fragile\"",{"$f":"B53/B$55","v":{"$error":"#DIV/0!"}},{"$f":"C53/C$55","v":{"$error":"#DIV/0!"}},{"$error":"#DIV/0!"},{"$error":"#DIV/0!"},{"$error":"#DIV/0!"}]
["Taux \"satisfaisant\"",{"$f":"B54/B$55","v":{"$error":"#DIV/0!"}},{"$f":"C54/C$55","v":{"$error":"#DIV/0!"}},{"$error":"#DIV/0!"},{"$error":"#DIV/0!"},{"$error":"#DIV/0!"}]
["Total élèves évalués ",{"$f":"B55/B$55","v":{"$error":"#DIV/0!"}},{"$f":"C55/C$55","v":{"$error":"#DIV/0!"}},{"$error":"#DIV/0!"},{"$error":"#DIV/0!"},{"$error":"#DIV/0!"}]
[]
[]
[{"$f":"CONCATENATE(\"Classe : \",Informations!$A$10)","v":"Classe : "},"Compréhension de l'oral\nComprendre un message oral","Test spécifique de compréhension de l'écrit\nComprendre un texte","Etude de la langue\nMobiliser ses connaissances en grammaire pour analyser des phrases","Etude de la langue\nMaîtriser l'orthographe","Etude de la langue\nComprendre et mobiliser le lexique"]
["Nb \"à besoins\"",{"$f":"COUNTIF(EVA2PRO_FRANCAIS!J:J,CONCATENATE(Informations!$A$10,\" \",Informations!$A$34))","v":0},{"$f":"COUNTIF(EVA2PRO_FRANCAIS!K:K,CONCATENATE(Informations!$A$10,\" \",Informations!$A$34))","v":0},{"$f":"COUNTIF(EVA2PRO_FRANCAIS!L:L,CONCATENATE(Informations!$A$10,\" \",Informations!$A$34))","v":0},{"$f":"COUNTIF(EVA2PRO_FRANCAIS!M:M,CONCATENATE(Informations!$A$10,\" \",Informations!$A$34))","v":0},{"$f":"COUNTIF(EVA2PRO_FRANCAIS!N:N,CONCATENATE(Informations!$A$10,\" \",Informations!$A$34))","v":0}]
["Nb \"fragile\"",{"$f":"COUNTIF(EVA2PRO_FRANCAIS!J:J,CONCATENATE(Informations!$A$10,\" \",Informations!$A$35))","v":0},{"$f":"COUNTIF(EVA2PRO_FRANCAIS!K:K,CONCATENATE(Informations!$A$10,\" \",Informations!$A$35))","v":0},{"$f":"COUNTIF(EVA2PRO_FRANCAIS!L:L,CONCATENATE(Informations!$A$10,\" \",Informations!$A$35))","v":0},{"$f":"COUNTIF(EVA2PRO_FRANCAIS!M:M,CONCATENATE(Informations!$A$10,\" \",Informations!$A$35))","v":0},{"$f":"COUNTIF(EVA2PRO_FRANCAIS!N:N,CONCATENATE(Informations!$A$10,\" \",Informations!$A$35))","v":0}]
["Nb \"satisfaisant\"",{"$f":"COUNTIF(EVA2PRO_FRANCAIS!J:J,CONCATENATE(Informations!$A$10,\" \",Informations!$A$36))","v":0},{"$f":"COUNTIF(EVA2PRO_FRANCAIS!K:K,CONCATENATE(Informations!$A$10,\" \",Informations!$A$36))","v":0},{"$f":"COUNTIF(EVA2PRO_FRANCAIS!L:L,CONCATENATE(Informations!$A$10,\" \",Informations!$A$36))","v":0},{"$f":"COUNTIF(EVA2PRO_FRANCAIS!M:M,CONCATENATE(Informations!$A$10,\" \",Informations!$A$36))","v":0},{"$f":"COUNTIF(EVA2PRO_FRANCAIS!N:N,CONCATENATE(Informations!$A$10,\" \",Informations!$A$36))","v":0}]
["Total élèves évalués ",{"$f":"SUM(B65:B67)","v":0},{"$f":"SUM(C65:C67)","v":0},0,0,0]
[]
[{"$f":"CONCATENATE(\"Classe : \",Informations!$A$10)","v":"Classe : "},"Compréhension de l'oral\nComprendre un message oral","Test spécifique de compréhension de l'écrit\nComprendre un texte","Etude de la langue\nMobiliser ses connaissances en grammaire pour analyser des phrases","Etude de la langue\nMaîtriser l'orthographe","Etude de la langue\nComprendre et mobiliser le lexique"]
["Taux \"à besoins\"",{"$f":"B65/B$68","v":{"$error":"#DIV/0!"}},{"$f":"C65/C$68","v":{"$error":"#DIV/0!"}},{"$error":"#DIV/0!"},{"$error":"#DIV/0!"},{"$error":"#DIV/0!"}]
["Taux \"fragile\"",{"$f":"B66/B$68","v":{"$error":"#DIV/0!"}},{"$f":"C66/C$68","v":{"$error":"#DIV/0!"}},{"$error":"#DIV/0!"},{"$error":"#DIV/0!"},{"$error":"#DIV/0!"}]
["Taux \"satisfaisant\"",{"$f":"B67/B$68","v":{"$error":"#DIV/0!"}},{"$f":"C67/C$68","v":{"$error":"#DIV/0!"}},{"$error":"#DIV/0!"},{"$error":"#DIV/0!"},{"$error":"#DIV/0!"}]
["Total élèves évalués ",{"$f":"B68/B$68","v":{"$error":"#DIV/0!"}},{"$f":"C68/C$68","v":{"$error":"#DIV/0!"}},{"$error":"#DIV/0!"},{"$error":"#DIV/0!"},{"$error":"#DIV/0!"}]
[]
[]
[{"$f":"CONCATENATE(\"Classe : \",Informations!$A$11)","v":"Classe : "},"Compréhension de l'oral\nComprendre un message oral","Test spécifique de compréhension de l'écrit\nComprendre un texte","Etude de la langue\nMobiliser ses connaissances en grammaire pour analyser des phrases","Etude de la langue\nMaîtriser l'orthographe","Etude de la langue\nComprendre et mobiliser le lexique"]
["Nb \"à besoins\"",{"$f":"COUNTIF(EVA2PRO_FRANCAIS!J:J,CONCATENATE(Informations!$A$11,\" \",Informations!$A$34))","v":0},{"$f":"COUNTIF(EVA2PRO_FRANCAIS!K:K,CONCATENATE(Informations!$A$11,\" \",Informations!$A$34))","v":0},{"$f":"COUNTIF(EVA2PRO_FRANCAIS!L:L,CONCATENATE(Informations!$A$11,\" \",Informations!$A$34))","v":0},{"$f":"COUNTIF(EVA2PRO_FRANCAIS!M:M,CONCATENATE(Informations!$A$11,\" \",Informations!$A$34))","v":0},{"$f":"COUNTIF(EVA2PRO_FRANCAIS!N:N,CONCATENATE(Informations!$A$11,\" \",Informations!$A$34))","v":0}]
["Nb \"fragile\"",{"$f":"COUNTIF(EVA2PRO_FRANCAIS!J:J,CONCATENATE(Informations!$A$11,\" \",Informations!$A$35))","v":0},{"$f":"COUNTIF(EVA2PRO_FRANCAIS!K:K,CONCATENATE(Informations!$A$11,\" \",Informations!$A$35))","v":0},{"$f":"COUNTIF(EVA2PRO_FRANCAIS!L:L,CONCATENATE(Informations!$A$11,\" \",Informations!$A$35))","v":0},{"$f":"COUNTIF(EVA2PRO_FRANCAIS!M:M,CONCATENATE(Informations!$A$11,\" \",Informations!$A$35))","v":0},{"$f":"COUNTIF(EVA2PRO_FRANCAIS!N:N,CONCATENATE(Informations!$A$11,\" \",Informations!$A$35))","v":0}]
["Nb \"satisfaisant\"",{"$f":"COUNTIF(EVA2PRO_FRANCAIS!J:J,CONCATENATE(Informations!$A$11,\" \",Informations!$A$36))","v":0},{"$f":"COUNTIF(EVA2PRO_FRANCAIS!K:K,CONCATENATE(Informations!$A$11,\" \",Informations!$A$36))","v":0},{"$f":"COUNTIF(EVA2PRO_FRANCAIS!L:L,CONCATENATE(Informations!$A$11,\" \",Informations!$A$36))","v":0},{"$f":"COUNTIF(EVA2PRO_FRANCAIS!M:M,CONCATENATE(Informations!$A$11,\" \",Informations!$A$36))","v":0},{"$f":"COUNTIF(EVA2PRO_FRANCAIS!N:N,CONCATENATE(Informations!$A$11,\" \",Informations!$A$36))","v":0}]
["Total élèves évalués ",{"$f":"SUM(B78:B80)","v":0},{"$f":"SUM(C78:C80)","v":0},0,0,0]
[]
[{"$f":"CONCATENATE(\"Classe : \",Informations!$A$11)","v":"Classe : "},"Compréhension de l'oral\nComprendre un message oral","Test spécifique de compréhension de l'écrit\nComprendre un texte","Etude de la langue\nMobiliser ses connaissances en grammaire pour analyser des phrases","Etude de la langue\nMaîtriser l'orthographe","Etude de la langue\nComprendre et mobiliser le lexique"]
["Taux \"à besoins\"",{"$f":"B78/B$81","v":{"$error":"#DIV/0!"}},{"$f":"C78/C$81","v":{"$error":"#DIV/0!"}},{"$error":"#DIV/0!"},{"$error":"#DIV/0!"},{"$error":"#DIV/0!"}]
["Taux \"fragile\"",{"$f":"B79/B$81","v":{"$error":"#DIV/0!"}},{"$f":"C79/C$81","v":{"$error":"#DIV/0!"}},{"$error":"#DIV/0!"},{"$error":"#DIV/0!"},{"$error":"#DIV/0!"}]
["Taux \"satisfaisant\"",{"$f":"B80/B$81","v":{"$error":"#DIV/0!"}},{"$f":"C80/C$81","v":{"$error":"#DIV/0!"}},{"$error":"#DIV/0!"},{"$error":"#DIV/0!"},{"$error":"#DIV/0!"}]
["Total élèves évalués ",{"$f":"B81/B$81","v":{"$error":"#DIV/0!"}},{"$f":"C81/C$81","v":{"$error":"#DIV/0!"}},{"$error":"#DIV/0!"},{"$error":"#DIV/0!"},{"$error":"#DIV/0!"}]
[]
[]
[{"$f":"CONCATENATE(\"Classe : \",Informations!$A$12)","v":"Classe : "},"Compréhension de l'oral\nComprendre un message oral","Test spécifique de compréhension de l'écrit\nComprendre un texte","Etude de la langue\nMobiliser ses connaissances en grammaire pour analyser des phrases","Etude de la langue\nMaîtriser l'orthographe","Etude de la langue\nComprendre et mobiliser le lexique"]
["Nb \"à besoins\"",{"$f":"COUNTIF(EVA2PRO_FRANCAIS!J:J,CONCATENATE(Informations!$A$12,\" \",Informations!$A$34))","v":0},{"$f":"COUNTIF(EVA2PRO_FRANCAIS!K:K,CONCATENATE(Informations!$A$12,\" \",Informations!$A$34))","v":0},{"$f":"COUNTIF(EVA2PRO_FRANCAIS!L:L,CONCATENATE(Informations!$A$12,\" \",Informations!$A$34))","v":0},{"$f":"COUNTIF(EVA2PRO_FRANCAIS!M:M,CONCATENATE(Informations!$A$12,\" \",Informations!$A$34))","v":0},{"$f":"COUNTIF(EVA2PRO_FRANCAIS!N:N,CONCATENATE(Informations!$A$12,\" \",Informations!$A$34))","v":0}]
["Nb \"fragile\"",{"$f":"COUNTIF(EVA2PRO_FRANCAIS!J:J,CONCATENATE(Informations!$A$12,\" \",Informations!$A$35))","v":0},{"$f":"COUNTIF(EVA2PRO_FRANCAIS!K:K,CONCATENATE(Informations!$A$12,\" \",Informations!$A$35))","v":0},{"$f":"COUNTIF(EVA2PRO_FRANCAIS!L:L,CONCATENATE(Informations!$A$12,\" \",Informations!$A$35))","v":0},{"$f":"COUNTIF(EVA2PRO_FRANCAIS!M:M,CONCATENATE(Informations!$A$12,\" \",Informations!$A$35))","v":0},{"$f":"COUNTIF(EVA2PRO_FRANCAIS!N:N,CONCATENATE(Informations!$A$12,\" \",Informations!$A$35))","v":0}]
["Nb \"satisfaisant\"",{"$f":"COUNTIF(EVA2PRO_FRANCAIS!J:J,CONCATENATE(Informations!$A$12,\" \",Informations!$A$36))","v":0},{"$f":"COUNTIF(EVA2PRO_FRANCAIS!K:K,CONCATENATE(Informations!$A$12,\" \",Informations!$A$36))","v":0},{"$f":"COUNTIF(EVA2PRO_FRANCAIS!L:L,CONCATENATE(Informations!$A$12,\" \",Informations!$A$36))","v":0},{"$f":"COUNTIF(EVA2PRO_FRANCAIS!M:M,CONCATENATE(Informations!$A$12,\" \",Informations!$A$36))","v":0},{"$f":"COUNTIF(EVA2PRO_FRANCAIS!N:N,CONCATENATE(Informations!$A$12,\" \",Informations!$A$36))","v":0}]
["Total élèves évalués ",{"$f":"SUM(B91:B93)","v":0},{"$f":"SUM(C91:C93)","v":0},0,0,0]
[]
[{"$f":"CONCATENATE(\"Classe : \",Informations!$A$12)","v":"Classe : "},"Compréhension de l'oral\nComprendre un message oral","Test spécifique de compréhension de l'écrit\nComprendre un texte","Etude de la langue\nMobiliser ses connaissances en grammaire pour analyser des phrases","Etude de la langue\nMaîtriser l'orthographe","Etude de la langue\nComprendre et mobiliser le lexique"]
["Taux \"maîtrise insuffisante\"",{"$f":"B91/B$94","v":{"$error":"#DIV/0!"}},{"$f":"C91/C$94","v":{"$error":"#DIV/0!"}},{"$error":"#DIV/0!"},{"$error":"#DIV/0!"},{"$error":"#DIV/0!"}]
["Taux \"maîtrise fragile\"",{"$f":"B92/B$94","v":{"$error":"#DIV/0!"}},{"$f":"C92/C$94","v":{"$error":"#DIV/0!"}},{"$error":"#DIV/0!"},{"$error":"#DIV/0!"},{"$error":"#DIV/0!"}]
["Taux \"très bonne maîtrise\"",{"$f":"B93/B$94","v":{"$error":"#DIV/0!"}},{"$f":"C93/C$94","v":{"$error":"#DIV/0!"}},{"$error":"#DIV/0!"},{"$error":"#DIV/0!"},{"$error":"#DIV/0!"}]
["Total élèves évalués ",{"$f":"B94/B$94","v":{"$error":"#DIV/0!"}},{"$f":"C94/C$94","v":{"$error":"#DIV/0!"}},{"$error":"#DIV/0!"},{"$error":"#DIV/0!"},{"$error":"#DIV/0!"}]
[]
[]
[{"$f":"CONCATENATE(\"Classe : \",Informations!$A$13)","v":"Classe : "},"Compréhension de l'oral\nComprendre un message oral","Test spécifique de compréhension de l'écrit\nComprendre un texte","Etude de la langue\nMobiliser ses connaissances en grammaire pour analyser des phrases","Etude de la langue\nMaîtriser l'orthographe","Etude de la langue\nComprendre et mobiliser le lexique"]
["Nb \"à besoins\"",{"$f":"COUNTIF(EVA2PRO_FRANCAIS!J:J,CONCATENATE(Informations!$A$13,\" \",Informations!$A$34))","v":0},{"$f":"COUNTIF(EVA2PRO_FRANCAIS!K:K,CONCATENATE(Informations!$A$13,\" \",Informations!$A$34))","v":0},{"$f":"COUNTIF(EVA2PRO_FRANCAIS!L:L,CONCATENATE(Informations!$A$13,\" \",Informations!$A$34))","v":0},{"$f":"COUNTIF(EVA2PRO_FRANCAIS!M:M,CONCATENATE(Informations!$A$13,\" \",Informations!$A$34))","v":0},{"$f":"COUNTIF(EVA2PRO_FRANCAIS!N:N,CONCATENATE(Informations!$A$13,\" \",Informations!$A$34))","v":0}]
["Nb \"fragile\"",{"$f":"COUNTIF(EVA2PRO_FRANCAIS!J:J,CONCATENATE(Informations!$A$13,\" \",Informations!$A$35))","v":0},{"$f":"COUNTIF(EVA2PRO_FRANCAIS!K:K,CONCATENATE(Informations!$A$13,\" \",Informations!$A$35))","v":0},{"$f":"COUNTIF(EVA2PRO_FRANCAIS!L:L,CONCATENATE(Informations!$A$13,\" \",Informations!$A$35))","v":0},{"$f":"COUNTIF(EVA2PRO_FRANCAIS!M:M,CONCATENATE(Informations!$A$13,\" \",Informations!$A$35))","v":0},{"$f":"COUNTIF(EVA2PRO_FRANCAIS!N:N,CONCATENATE(Informations!$A$13,\" \",Informations!$A$35))","v":0}]
["Nb \"satisfaisant\"",{"$f":"COUNTIF(EVA2PRO_FRANCAIS!J:J,CONCATENATE(Informations!$A$13,\" \",Informations!$A$36))","v":0},{"$f":"COUNTIF(EVA2PRO_FRANCAIS!K:K,CONCATENATE(Informations!$A$13,\" \",Informations!$A$36))","v":0},{"$f":"COUNTIF(EVA2PRO_FRANCAIS!L:L,CONCATENATE(Informations!$A$13,\" \",Informations!$A$36))","v":0},{"$f":"COUNTIF(EVA2PRO_FRANCAIS!M:M,CONCATENATE(Informations!$A$13,\" \",Informations!$A$36))","v":0},{"$f":"COUNTIF(EVA2PRO_FRANCAIS!N:N,CONCATENATE(Informations!$A$13,\" \",Informations!$A$36))","v":0}]
["Total élèves évalués ",{"$f":"SUM(B104:B106)","v":0},{"$f":"SUM(C104:C106)","v":0},0,0,0]
[]
[{"$f":"CONCATENATE(\"Classe : \",Informations!$A$13)","v":"Classe : "},"Compréhension de l'oral\nComprendre un message oral","Test spécifique de compréhension de l'écrit\nComprendre un texte","Etude de la langue\nMobiliser ses connaissances en grammaire pour analyser des phrases","Etude de la langue\nMaîtriser l'orthographe","Etude de la langue\nComprendre et mobiliser le lexique"]
["Taux \"à besoins\"",{"$f":"B104/B$107","v":{"$error":"#DIV/0!"}},{"$f":"C104/C$107","v":{"$error":"#DIV/0!"}},{"$error":"#DIV/0!"},{"$error":"#DIV/0!"},{"$error":"#DIV/0!"}]
["Taux \"fragile\"",{"$f":"B105/B$107","v":{"$error":"#DIV/0!"}},{"$f":"C105/C$107","v":{"$error":"#DIV/0!"}},{"$error":"#DIV/0!"},{"$error":"#DIV/0!"},{"$error":"#DIV/0!"}]
["Taux \"satisfaisant\"",{"$f":"B106/B$107","v":{"$error":"#DIV/0!"}},{"$f":"C106/C$107","v":{"$error":"#DIV/0!"}},{"$error":"#DIV/0!"},{"$error":"#DIV/0!"},{"$error":"#DIV/0!"}]
["Total élèves évalués ",{"$f":"B107/B$107","v":{"$error":"#DIV/0!"}},{"$f":"C107/C$107","v":{"$error":"#DIV/0!"}},{"$error":"#DIV/0!"},{"$error":"#DIV/0!"},{"$error":"#DIV/0!"}]
[]
[]
[{"$f":"CONCATENATE(\"Classe : \",Informations!$A$14)","v":"Classe : "},"Compréhension de l'oral\nComprendre un message oral","Test spécifique de compréhension de l'écrit\nComprendre un texte","Etude de la langue\nMobiliser ses connaissances en grammaire pour analyser des phrases","Etude de la langue\nMaîtriser l'orthographe","Etude de la langue\nComprendre et mobiliser le lexique"]
["Nb \"à besoins\"",{"$f":"COUNTIF(EVA2PRO_FRANCAIS!J:J,CONCATENATE(Informations!$A$14,\" \",Informations!$A$34))","v":0},{"$f":"COUNTIF(EVA2PRO_FRANCAIS!K:K,CONCATENATE(Informations!$A$14,\" \",Informations!$A$34))","v":0},{"$f":"COUNTIF(EVA2PRO_FRANCAIS!L:L,CONCATENATE(Informations!$A$14,\" \",Informations!$A$34))","v":0},{"$f":"COUNTIF(EVA2PRO_FRANCAIS!M:M,CONCATENATE(Informations!$A$14,\" \",Informations!$A$34))","v":0},{"$f":"COUNTIF(EVA2PRO_FRANCAIS!N:N,CONCATENATE(Informations!$A$14,\" \",Informations!$A$34))","v":0}]
["Nb \"fragile\"",{"$f":"COUNTIF(EVA2PRO_FRANCAIS!J:J,CONCATENATE(Informations!$A$14,\" \",Informations!$A$35))","v":0},{"$f":"COUNTIF(EVA2PRO_FRANCAIS!K:K,CONCATENATE(Informations!$A$14,\" \",Informations!$A$35))","v":0},{"$f":"COUNTIF(EVA2PRO_FRANCAIS!L:L,CONCATENATE(Informations!$A$14,\" \",Informations!$A$35))","v":0},{"$f":"COUNTIF(EVA2PRO_FRANCAIS!M:M,CONCATENATE(Informations!$A$14,\" \",Informations!$A$35))","v":0},{"$f":"COUNTIF(EVA2PRO_FRANCAIS!N:N,CONCATENATE(Informations!$A$14,\" \",Informations!$A$35))","v":0}]
["Nb \"satisfaisant\"",{"$f":"COUNTIF(EVA2PRO_FRANCAIS!J:J,CONCATENATE(Informations!$A$14,\" \",Informations!$A$36))","v":0},{"$f":"COUNTIF(EVA2PRO_FRANCAIS!K:K,CONCATENATE(Informations!$A$14,\" \",Informations!$A$36))","v":0},{"$f":"COUNTIF(EVA2PRO_FRANCAIS!L:L,CONCATENATE(Informations!$A$14,\" \",Informations!$A$36))","v":0},{"$f":"COUNTIF(EVA2PRO_FRANCAIS!M:M,CONCATENATE(Informations!$A$14,\" \",Informations!$A$36))","v":0},{"$f":"COUNTIF(EVA2PRO_FRANCAIS!N:N,CONCATENATE(Informations!$A$14,\" \",Informations!$A$36))","v":0}]
["Total élèves évalués ",{"$f":"SUM(B117:B119)","v":0},{"$f":"SUM(C117:C119)","v":0},0,0,0]
[]
[{"$f":"CONCATENATE(\"Classe : \",Informations!$A$14)","v":"Classe : "},"Compréhension de l'oral\nComprendre un message oral","Test spécifique de compréhension de l'écrit\nComprendre un texte","Etude de la langue\nMobiliser ses connaissances en grammaire pour analyser des phrases","Etude de la langue\nMaîtriser l'orthographe","Etude de la langue\nComprendre et mobiliser le lexique"]
["Taux \"à besoins\"",{"$f":"B117/B$120","v":{"$error":"#DIV/0!"}},{"$f":"C117/C$120","v":{"$error":"#DIV/0!"}},{"$error":"#DIV/0!"},{"$error":"#DIV/0!"},{"$error":"#DIV/0!"}]
["Taux \"fragile\"",{"$f":"B118/B$120","v":{"$error":"#DIV/0!"}},{"$f":"C118/C$120","v":{"$error":"#DIV/0!"}},{"$error":"#DIV/0!"},{"$error":"#DIV/0!"},{"$error":"#DIV/0!"}]
["Taux \"satisfaisant\"",{"$f":"B119/B$120","v":{"$error":"#DIV/0!"}},{"$f":"C119/C$120","v":{"$error":"#DIV/0!"}},{"$error":"#DIV/0!"},{"$error":"#DIV/0!"},{"$error":"#DIV/0!"}]
["Total élèves évalués ",{"$f":"B120/B$120","v":{"$error":"#DIV/0!"}},{"$f":"C120/C$120","v":{"$error":"#DIV/0!"}},{"$error":"#DIV/0!"},{"$error":"#DIV/0!"},{"$error":"#DIV/0!"}]
[]
[]
[{"$f":"CONCATENATE(\"Classe : \",Informations!$A$15)","v":"Classe : "},"Compréhension de l'oral\nComprendre un message oral","Test spécifique de compréhension de l'écrit\nComprendre un texte","Etude de la langue\nMobiliser ses connaissances en grammaire pour analyser des phrases","Etude de la langue\nMaîtriser l'orthographe","Etude de la langue\nComprendre et mobiliser le lexique"]
["Nb \"à besoins\"",{"$f":"COUNTIF(EVA2PRO_FRANCAIS!J:J,CONCATENATE(Informations!$A$15,\" \",Informations!$A$34))","v":0},{"$f":"COUNTIF(EVA2PRO_FRANCAIS!K:K,CONCATENATE(Informations!$A$15,\" \",Informations!$A$34))","v":0},{"$f":"COUNTIF(EVA2PRO_FRANCAIS!L:L,CONCATENATE(Informations!$A$15,\" \",Informations!$A$34))","v":0},{"$f":"COUNTIF(EVA2PRO_FRANCAIS!M:M,CONCATENATE(Informations!$A$15,\" \",Informations!$A$34))","v":0},{"$f":"COUNTIF(EVA2PRO_FRANCAIS!N:N,CONCATENATE(Informations!$A$15,\" \",Informations!$A$34))","v":0}]
["Nb \"fragile\"",{"$f":"COUNTIF(EVA2PRO_FRANCAIS!J:J,CONCATENATE(Informations!$A$15,\" \",Informations!$A$35))","v":0},{"$f":"COUNTIF(EVA2PRO_FRANCAIS!K:K,CONCATENATE(Informations!$A$15,\" \",Informations!$A$35))","v":0},{"$f":"COUNTIF(EVA2PRO_FRANCAIS!L:L,CONCATENATE(Informations!$A$15,\" \",Informations!$A$35))","v":0},{"$f":"COUNTIF(EVA2PRO_FRANCAIS!M:M,CONCATENATE(Informations!$A$15,\" \",Informations!$A$35))","v":0},{"$f":"COUNTIF(EVA2PRO_FRANCAIS!N:N,CONCATENATE(Informations!$A$15,\" \",Informations!$A$35))","v":0}]
["Nb \"satisfaisant\"",{"$f":"COUNTIF(EVA2PRO_FRANCAIS!J:J,CONCATENATE(Informations!$A$15,\" \",Informations!$A$36))","v":0},{"$f":"COUNTIF(EVA2PRO_FRANCAIS!K:K,CONCATENATE(Informations!$A$15,\" \",Informations!$A$36))","v":0},{"$f":"COUNTIF(EVA2PRO_FRANCAIS!L:L,CONCATENATE(Informations!$A$15,\" \",Informations!$A$36))","v":0},{"$f":"COUNTIF(EVA2PRO_FRANCAIS!M:M,CONCATENATE(Informations!$A$15,\" \",Informations!$A$36))","v":0},{"$f":"COUNTIF(EVA2PRO_FRANCAIS!N:N,CONCATENATE(Informations!$A$15,\" \",Informations!$A$36))","v":0}]
["Total élèves évalués ",{"$f":"SUM(B130:B132)","v":0},{"$f":"SUM(C130:C132)","v":0},0,0,0]
[]
[{"$f":"CONCATENATE(\"Classe : \",Informations!$A$15)","v":"Classe : "},"Compréhension de l'oral\nComprendre un message oral","Test spécifique de compréhension de l'écrit\nComprendre un texte","Etude de la langue\nMobiliser ses connaissances en grammaire pour analyser des phrases","Etude de la langue\nMaîtriser l'orthographe","Etude de la langue\nComprendre et mobiliser le lexique"]
["Taux \"à besoins\"",{"$f":"B130/B$133","v":{"$error":"#DIV/0!"}},{"$f":"C130/C$133","v":{"$error":"#DIV/0!"}},{"$error":"#DIV/0!"},{"$error":"#DIV/0!"},{"$error":"#DIV/0!"}]
["Taux \"fragile\"",{"$f":"B131/B$133","v":{"$error":"#DIV/0!"}},{"$f":"C131/C$133","v":{"$error":"#DIV/0!"}},{"$error":"#DIV/0!"},{"$error":"#DIV/0!"},{"$error":"#DIV/0!"}]
["Taux \"satisfaisant\"",{"$f":"B132/B$133","v":{"$error":"#DIV/0!"}},{"$f":"C132/C$133","v":{"$error":"#DIV/0!"}},{"$error":"#DIV/0!"},{"$error":"#DIV/0!"},{"$error":"#DIV/0!"}]
["Total élèves évalués ",{"$f":"B133/B$133","v":{"$error":"#DIV/0!"}},{"$f":"C133/C$133","v":{"$error":"#DIV/0!"}},{"$error":"#DIV/0!"},{"$error":"#DIV/0!"},{"$error":"#DIV/0!"}]
[]
[]
[{"$f":"CONCATENATE(\"Classe : \",Informations!$A$16)","v":"Classe : "},"Compréhension de l'oral\nComprendre un message oral","Test spécifique de compréhension de l'écrit\nComprendre un texte","Etude de la langue\nMobiliser ses connaissances en grammaire pour analyser des phrases","Etude de la langue\nMaîtriser l'orthographe","Etude de la langue\nComprendre et mobiliser le lexique"]
["Nb \"à besoins\"",{"$f":"COUNTIF(EVA2PRO_FRANCAIS!J:J,CONCATENATE(Informations!$A$16,\" \",Informations!$A$34))","v":0},{"$f":"COUNTIF(EVA2PRO_FRANCAIS!K:K,CONCATENATE(Informations!$A$16,\" \",Informations!$A$34))","v":0},{"$f":"COUNTIF(EVA2PRO_FRANCAIS!L:L,CONCATENATE(Informations!$A$16,\" \",Informations!$A$34))","v":0},{"$f":"COUNTIF(EVA2PRO_FRANCAIS!M:M,CONCATENATE(Informations!$A$16,\" \",Informations!$A$34))","v":0},{"$f":"COUNTIF(EVA2PRO_FRANCAIS!N:N,CONCATENATE(Informations!$A$16,\" \",Informations!$A$34))","v":0}]
["Nb \"fragile\"",{"$f":"COUNTIF(EVA2PRO_FRANCAIS!J:J,CONCATENATE(Informations!$A$16,\" \",Informations!$A$35))","v":0},{"$f":"COUNTIF(EVA2PRO_FRANCAIS!K:K,CONCATENATE(Informations!$A$16,\" \",Informations!$A$35))","v":0},{"$f":"COUNTIF(EVA2PRO_FRANCAIS!L:L,CONCATENATE(Informations!$A$16,\" \",Informations!$A$35))","v":0},{"$f":"COUNTIF(EVA2PRO_FRANCAIS!M:M,CONCATENATE(Informations!$A$16,\" \",Informations!$A$35))","v":0},{"$f":"COUNTIF(EVA2PRO_FRANCAIS!N:N,CONCATENATE(Informations!$A$16,\" \",Informations!$A$35))","v":0}]
["Nb \"satisfaisant\"",{"$f":"COUNTIF(EVA2PRO_FRANCAIS!J:J,CONCATENATE(Informations!$A$16,\" \",Informations!$A$36))","v":0},{"$f":"COUNTIF(EVA2PRO_FRANCAIS!K:K,CONCATENATE(Informations!$A$16,\" \",Informations!$A$36))","v":0},{"$f":"COUNTIF(EVA2PRO_FRANCAIS!L:L,CONCATENATE(Informations!$A$16,\" \",Informations!$A$36))","v":0},{"$f":"COUNTIF(EVA2PRO_FRANCAIS!M:M,CONCATENATE(Informations!$A$16,\" \",Informations!$A$36))","v":0},{"$f":"COUNTIF(EVA2PRO_FRANCAIS!N:N,CONCATENATE(Informations!$A$16,\" \",Informations!$A$36))","v":0}]
["Total élèves évalués ",{"$f":"SUM(B143:B145)","v":0},{"$f":"SUM(C143:C145)","v":0},0,0,0]
[]
[{"$f":"CONCATENATE(\"Classe : \",Informations!$A$16)","v":"Classe : "},"Compréhension de l'oral\nComprendre un message oral","Test spécifique de compréhension de l'écrit\nComprendre un texte","Etude de la langue\nMobiliser ses connaissances en grammaire pour analyser des phrases","Etude de la langue\nMaîtriser l'orthographe","Etude de la langue\nComprendre et mobiliser le lexique"]
["Taux \"à besoins\"",{"$f":"B143/B$146","v":{"$error":"#DIV/0!"}},{"$f":"C143/C$146","v":{"$error":"#DIV/0!"}},{"$error":"#DIV/0!"},{"$error":"#DIV/0!"},{"$error":"#DIV/0!"}]
["Taux \"fragile\"",{"$f":"B144/B$146","v":{"$error":"#DIV/0!"}},{"$f":"C144/C$146","v":{"$error":"#DIV/0!"}},{"$error":"#DIV/0!"},{"$error":"#DIV/0!"},{"$error":"#DIV/0!"}]
["Taux \"satisfaisant\"",{"$f":"B145/B$146","v":{"$error":"#DIV/0!"}},{"$f":"C145/C$146","v":{"$error":"#DIV/0!"}},{"$error":"#DIV/0!"},{"$error":"#DIV/0!"},{"$error":"#DIV/0!"}]
["Total élèves évalués ",{"$f":"B146/B$146","v":{"$error":"#DIV/0!"}},{"$f":"C146/C$146","v":{"$error":"#DIV/0!"}},{"$error":"#DIV/0!"},{"$error":"#DIV/0!"},{"$error":"#DIV/0!"}]
[]
[]
[{"$f":"CONCATENATE(\"Classe : \",Informations!$A$17)","v":"Classe : "},"Compréhension de l'oral\nComprendre un message oral","Test spécifique de compréhension de l'écrit\nComprendre un texte","Etude de la langue\nMobiliser ses connaissances en grammaire pour analyser des phrases","Etude de la langue\nMaîtriser l'orthographe","Etude de la langue\nComprendre et mobiliser le lexique"]
["Nb \"à besoins\"",{"$f":"COUNTIF(EVA2PRO_FRANCAIS!J:J,CONCATENATE(Informations!$A$17,\" \",Informations!$A$34))","v":0},{"$f":"COUNTIF(EVA2PRO_FRANCAIS!K:K,CONCATENATE(Informations!$A$17,\" \",Informations!$A$34))","v":0},{"$f":"COUNTIF(EVA2PRO_FRANCAIS!L:L,CONCATENATE(Informations!$A$17,\" \",Informations!$A$34))","v":0},{"$f":"COUNTIF(EVA2PRO_FRANCAIS!M:M,CONCATENATE(Informations!$A$17,\" \",Informations!$A$34))","v":0},{"$f":"COUNTIF(EVA2PRO_FRANCAIS!N:N,CONCATENATE(Informations!$A$17,\" \",Informations!$A$34))","v":0}]
["Nb \"fragile\"",{"$f":"COUNTIF(EVA2PRO_FRANCAIS!J:J,CONCATENATE(Informations!$A$17,\" \",Informations!$A$35))","v":0},{"$f":"COUNTIF(EVA2PRO_FRANCAIS!K:K,CONCATENATE(Informations!$A$17,\" \",Informations!$A$35))","v":0},{"$f":"COUNTIF(EVA2PRO_FRANCAIS!L:L,CONCATENATE(Informations!$A$17,\" \",Informations!$A$35))","v":0},{"$f":"COUNTIF(EVA2PRO_FRANCAIS!M:M,CONCATENATE(Informations!$A$17,\" \",Informations!$A$35))","v":0},{"$f":"COUNTIF(EVA2PRO_FRANCAIS!N:N,CONCATENATE(Informations!$A$17,\" \",Informations!$A$35))","v":0}]
["Nb \"satisfaisant\"",{"$f":"COUNTIF(EVA2PRO_FRANCAIS!J:J,CONCATENATE(Informations!$A$17,\" \",Informations!$A$36))","v":0},{"$f":"COUNTIF(EVA2PRO_FRANCAIS!K:K,CONCATENATE(Informations!$A$17,\" \",Informations!$A$36))","v":0},{"$f":"COUNTIF(EVA2PRO_FRANCAIS!L:L,CONCATENATE(Informations!$A$17,\" \",Informations!$A$36))","v":0},{"$f":"COUNTIF(EVA2PRO_FRANCAIS!M:M,CONCATENATE(Informations!$A$17,\" \",Informations!$A$36))","v":0},{"$f":"COUNTIF(EVA2PRO_FRANCAIS!N:N,CONCATENATE(Informations!$A$17,\" \",Informations!$A$36))","v":0}]
["Total élèves évalués ",{"$f":"SUM(B156:B158)","v":0},{"$f":"SUM(C156:C158)","v":0},0,0,0]
[]
[{"$f":"CONCATENATE(\"Classe : \",Informations!$A$17)","v":"Classe : "},"Compréhension de l'oral\nComprendre un message oral","Test spécifique de compréhension de l'écrit\nComprendre un texte","Etude de la langue\nMobiliser ses connaissances en grammaire pour analyser des phrases","Etude de la langue\nMaîtriser l'orthographe","Etude de la langue\nComprendre et mobiliser le lexique"]
["Taux \"à besoins\"",{"$f":"B156/B$159","v":{"$error":"#DIV/0!"}},{"$f":"C156/C$159","v":{"$error":"#DIV/0!"}},{"$error":"#DIV/0!"},{"$error":"#DIV/0!"},{"$error":"#DIV/0!"}]
["Taux \"fragile\"",{"$f":"B157/B$159","v":{"$error":"#DIV/0!"}},{"$f":"C157/C$159","v":{"$error":"#DIV/0!"}},{"$error":"#DIV/0!"},{"$error":"#DIV/0!"},{"$error":"#DIV/0!"}]
["Taux \"satisfaisant\"",{"$f":"B158/B$159","v":{"$error":"#DIV/0!"}},{"$f":"C158/C$159","v":{"$error":"#DIV/0!"}},{"$error":"#DIV/0!"},{"$error":"#DIV/0!"},{"$error":"#DIV/0!"}]
["Total élèves évalués ",{"$f":"B159/B$159","v":{"$error":"#DIV/0!"}},{"$f":"C159/C$159","v":{"$error":"#DIV/0!"}},{"$error":"#DIV/0!"},{"$error":"#DIV/0!"},{"$error":"#DIV/0!"}]
[]
[]
[{"$f":"CONCATENATE(\"Classe : \",Informations!$A$18)","v":"Classe : "},"Compréhension de l'oral\nComprendre un message oral","Test spécifique de compréhension de l'écrit\nComprendre un texte","Etude de la langue\nMobiliser ses connaissances en grammaire pour analyser des phrases","Etude de la langue\nMaîtriser l'orthographe","Etude de la langue\nComprendre et mobiliser le lexique"]
["Nb \"à besoins\"",{"$f":"COUNTIF(EVA2PRO_FRANCAIS!J:J,CONCATENATE(Informations!$A$18,\" \",Informations!$A$34))","v":0},{"$f":"COUNTIF(EVA2PRO_FRANCAIS!K:K,CONCATENATE(Informations!$A$18,\" \",Informations!$A$34))","v":0},{"$f":"COUNTIF(EVA2PRO_FRANCAIS!L:L,CONCATENATE(Informations!$A$18,\" \",Informations!$A$34))","v":0},{"$f":"COUNTIF(EVA2PRO_FRANCAIS!M:M,CONCATENATE(Informations!$A$18,\" \",Informations!$A$34))","v":0},{"$f":"COUNTIF(EVA2PRO_FRANCAIS!N:N,CONCATENATE(Informations!$A$18,\" \",Informations!$A$34))","v":0}]
["Nb \"fragile\"",{"$f":"COUNTIF(EVA2PRO_FRANCAIS!J:J,CONCATENATE(Informations!$A$18,\" \",Informations!$A$35))","v":0},{"$f":"COUNTIF(EVA2PRO_FRANCAIS!K:K,CONCATENATE(Informations!$A$18,\" \",Informations!$A$35))","v":0},{"$f":"COUNTIF(EVA2PRO_FRANCAIS!L:L,CONCATENATE(Informations!$A$18,\" \",Informations!$A$35))","v":0},{"$f":"COUNTIF(EVA2PRO_FRANCAIS!M:M,CONCATENATE(Informations!$A$18,\" \",Informations!$A$35))","v":0},{"$f":"COUNTIF(EVA2PRO_FRANCAIS!N:N,CONCATENATE(Informations!$A$18,\" \",Informations!$A$35))","v":0}]
["Nb \"satisfaisant\"",{"$f":"COUNTIF(EVA2PRO_FRANCAIS!J:J,CONCATENATE(Informations!$A$18,\" \",Informations!$A$36))","v":0},{"$f":"COUNTIF(EVA2PRO_FRANCAIS!K:K,CONCATENATE(Informations!$A$18,\" \",Informations!$A$36))","v":0},{"$f":"COUNTIF(EVA2PRO_FRANCAIS!L:L,CONCATENATE(Informations!$A$18,\" \",Informations!$A$36))","v":0},{"$f":"COUNTIF(EVA2PRO_FRANCAIS!M:M,CONCATENATE(Informations!$A$18,\" \",Informations!$A$36))","v":0},{"$f":"COUNTIF(EVA2PRO_FRANCAIS!N:N,CONCATENATE(Informations!$A$18,\" \",Informations!$A$36))","v":0}]
["Total élèves évalués ",{"$f":"SUM(B169:B171)","v":0},{"$f":"SUM(C169:C171)","v":0},0,0,0]
[]
[{"$f":"CONCATENATE(\"Classe : \",Informations!$A$18)","v":"Classe : "},"Compréhension de l'oral\nComprendre un message oral","Test spécifique de compréhension de l'écrit\nComprendre un texte","Etude de la langue\nMobiliser ses connaissances en grammaire pour analyser des phrases","Etude de la langue\nMaîtriser l'orthographe","Etude de la langue\nComprendre et mobiliser le lexique"]
["Taux \"à besoins\"",{"$f":"B169/B$172","v":{"$error":"#DIV/0!"}},{"$f":"C169/C$172","v":{"$error":"#DIV/0!"}},{"$error":"#DIV/0!"},{"$error":"#DIV/0!"},{"$error":"#DIV/0!"}]
["Taux \"fragile\"",{"$f":"B170/B$172","v":{"$error":"#DIV/0!"}},{"$f":"C170/C$172","v":{"$error":"#DIV/0!"}},{"$error":"#DIV/0!"},{"$error":"#DIV/0!"},{"$error":"#DIV/0!"}]
["Taux \"satisfaisant\"",{"$f":"B171/B$172","v":{"$error":"#DIV/0!"}},{"$error":"#DIV/0!"},{"$error":"#DIV/0!"},{"$error":"#DIV/0!"},{"$error":"#DIV/0!"}]
["Total élèves évalués ",{"$f":"B172/B$172","v":{"$error":"#DIV/0!"}},{"$error":"#DIV/0!"},{"$error":"#DIV/0!"},{"$error":"#DIV/0!"},{"$error":"#DIV/0!"}]
[]
[]
[{"$f":"CONCATENATE(\"Classe : \",Informations!$A$19)","v":"Classe : "},"Compréhension de l'oral\nComprendre un message oral","Test spécifique de compréhension de l'écrit\nComprendre un texte","Etude de la langue\nMobiliser ses connaissances en grammaire pour analyser des phrases","Etude de la langue\nMaîtriser l'orthographe","Etude de la langue\nComprendre et mobiliser le lexique"]
["Nb \"à besoins\"",{"$f":"COUNTIF(EVA2PRO_FRANCAIS!J:J,CONCATENATE(Informations!$A$19,\" \",Informations!$A$34))","v":0},{"$f":"COUNTIF(EVA2PRO_FRANCAIS!K:K,CONCATENATE(Informations!$A$19,\" \",Informations!$A$34))","v":0},{"$f":"COUNTIF(EVA2PRO_FRANCAIS!L:L,CONCATENATE(Informations!$A$19,\" \",Informations!$A$34))","v":0},{"$f":"COUNTIF(EVA2PRO_FRANCAIS!M:M,CONCATENATE(Informations!$A$19,\" \",Informations!$A$34))","v":0},{"$f":"COUNTIF(EVA2PRO_FRANCAIS!N:N,CONCATENATE(Informations!$A$19,\" \",Informations!$A$34))","v":0}]
["Nb \"fragile\"",{"$f":"COUNTIF(EVA2PRO_FRANCAIS!J:J,CONCATENATE(Informations!$A$19,\" \",Informations!$A$35))","v":0},{"$f":"COUNTIF(EVA2PRO_FRANCAIS!K:K,CONCATENATE(Informations!$A$19,\" \",Informations!$A$35))","v":0},{"$f":"COUNTIF(EVA2PRO_FRANCAIS!L:L,CONCATENATE(Informations!$A$19,\" \",Informations!$A$35))","v":0},{"$f":"COUNTIF(EVA2PRO_FRANCAIS!M:M,CONCATENATE(Informations!$A$19,\" \",Informations!$A$35))","v":0},{"$f":"COUNTIF(EVA2PRO_FRANCAIS!N:N,CONCATENATE(Informations!$A$19,\" \",Informations!$A$35))","v":0}]
["Nb \"satisfaisant\"",{"$f":"COUNTIF(EVA2PRO_FRANCAIS!J:J,CONCATENATE(Informations!$A$19,\" \",Informations!$A$36))","v":0},{"$f":"COUNTIF(EVA2PRO_FRANCAIS!K:K,CONCATENATE(Informations!$A$19,\" \",Informations!$A$36))","v":0},{"$f":"COUNTIF(EVA2PRO_FRANCAIS!L:L,CONCATENATE(Informations!$A$19,\" \",Informations!$A$36))","v":0},{"$f":"COUNTIF(EVA2PRO_FRANCAIS!M:M,CONCATENATE(Informations!$A$19,\" \",Informations!$A$36))","v":0},{"$f":"COUNTIF(EVA2PRO_FRANCAIS!N:N,CONCATENATE(Informations!$A$19,\" \",Informations!$A$36))","v":0}]
["Total élèves évalués ",{"$f":"SUM(B182:B184)","v":0},{"$f":"SUM(C182:C184)","v":0},0,0,0]
[]
[{"$f":"CONCATENATE(\"Classe : \",Informations!$A$19)","v":"Classe : "},"Compréhension de l'oral\nComprendre un message oral","Test spécifique de compréhension de l'écrit\nComprendre un texte","Etude de la langue\nMobiliser ses connaissances en grammaire pour analyser des phrases","Etude de la langue\nMaîtriser l'orthographe","Etude de la langue\nComprendre et mobiliser le lexique"]
["Taux \"à besoins\"",{"$f":"B182/B$185","v":{"$error":"#DIV/0!"}},{"$f":"C182/C$185","v":{"$error":"#DIV/0!"}},{"$error":"#DIV/0!"},{"$error":"#DIV/0!"},{"$error":"#DIV/0!"}]
["Taux \"fragile\"",{"$f":"B183/B$185","v":{"$error":"#DIV/0!"}},{"$error":"#DIV/0!"},{"$error":"#DIV/0!"},{"$error":"#DIV/0!"},{"$error":"#DIV/0!"}]
["Taux \"satisfaisant\"",{"$f":"B184/B$185","v":{"$error":"#DIV/0!"}},{"$f":"C184/C$185","v":{"$error":"#DIV/0!"}},{"$error":"#DIV/0!"},{"$error":"#DIV/0!"},{"$error":"#DIV/0!"}]
["Total élèves évalués ",{"$f":"B185/B$185","v":{"$error":"#DIV/0!"}},{"$f":"C185/C$185","v":{"$error":"#DIV/0!"}},{"$error":"#DIV/0!"},{"$error":"#DIV/0!"},{"$error":"#DIV/0!"}]
[]
[]
[{"$f":"CONCATENATE(\"Classe : \",Informations!$A$20)","v":"Classe : "},"Compréhension de l'oral\nComprendre un message oral","Test spécifique de compréhension de l'écrit\nComprendre un texte","Etude de la langue\nMobiliser ses connaissances en grammaire pour analyser des phrases","Etude de la langue\nMaîtriser l'orthographe","Etude de la langue\nComprendre et mobiliser le lexique"]
["Nb \"à besoins\"",{"$f":"COUNTIF(EVA2PRO_FRANCAIS!J:J,CONCATENATE(Informations!$A$20,\" \",Informations!$A$34))","v":0},{"$f":"COUNTIF(EVA2PRO_FRANCAIS!K:K,CONCATENATE(Informations!$A$20,\" \",Informations!$A$34))","v":0},{"$f":"COUNTIF(EVA2PRO_FRANCAIS!L:L,CONCATENATE(Informations!$A$20,\" \",Informations!$A$34))","v":0},{"$f":"COUNTIF(EVA2PRO_FRANCAIS!M:M,CONCATENATE(Informations!$A$20,\" \",Informations!$A$34))","v":0},{"$f":"COUNTIF(EVA2PRO_FRANCAIS!N:N,CONCATENATE(Informations!$A$20,\" \",Informations!$A$34))","v":0}]
["Nb \"fragile\"",{"$f":"COUNTIF(EVA2PRO_FRANCAIS!J:J,CONCATENATE(Informations!$A$20,\" \",Informations!$A$35))","v":0},{"$f":"COUNTIF(EVA2PRO_FRANCAIS!K:K,CONCATENATE(Informations!$A$20,\" \",Informations!$A$35))","v":0},{"$f":"COUNTIF(EVA2PRO_FRANCAIS!L:L,CONCATENATE(Informations!$A$20,\" \",Informations!$A$35))","v":0},{"$f":"COUNTIF(EVA2PRO_FRANCAIS!M:M,CONCATENATE(Informations!$A$20,\" \",Informations!$A$35))","v":0},{"$f":"COUNTIF(EVA2PRO_FRANCAIS!N:N,CONCATENATE(Informations!$A$20,\" \",Informations!$A$35))","v":0}]
["Nb \"satisfaisant\"",{"$f":"COUNTIF(EVA2PRO_FRANCAIS!J:J,CONCATENATE(Informations!$A$20,\" \",Informations!$A$36))","v":0},{"$f":"COUNTIF(EVA2PRO_FRANCAIS!K:K,CONCATENATE(Informations!$A$20,\" \",Informations!$A$36))","v":0},{"$f":"COUNTIF(EVA2PRO_FRANCAIS!L:L,CONCATENATE(Informations!$A$20,\" \",Informations!$A$36))","v":0},{"$f":"COUNTIF(EVA2PRO_FRANCAIS!M:M,CONCATENATE(Informations!$A$20,\" \",Informations!$A$36))","v":0},{"$f":"COUNTIF(EVA2PRO_FRANCAIS!N:N,CONCATENATE(Informations!$A$20,\" \",Informations!$A$36))","v":0}]
["Total élèves évalués ",{"$f":"SUM(B195:B197)","v":0},{"$f":"SUM(C195:C197)","v":0},0,0,0]
[]
[{"$f":"CONCATENATE(\"Classe : \",Informations!$A$20)","v":"Classe : "},"Compréhension de l'oral\nComprendre un message oral","Test spécifique de compréhension de l'écrit\nComprendre un texte","Etude de la langue\nMobiliser ses connaissances en grammaire pour analyser des phrases","Etude de la langue\nMaîtriser l'orthographe","Etude de la langue\nComprendre et mobiliser le lexique"]
["Taux \"à besoins\"",{"$f":"B195/B$198","v":{"$error":"#DIV/0!"}},{"$f":"C195/C$198","v":{"$error":"#DIV/0!"}},{"$error":"#DIV/0!"},{"$error":"#DIV/0!"},{"$error":"#DIV/0!"}]
["Taux \"fragile\"",{"$f":"B196/B$198","v":{"$error":"#DIV/0!"}},{"$error":"#DIV/0!"},{"$error":"#DIV/0!"},{"$error":"#DIV/0!"},{"$error":"#DIV/0!"}]
["Taux \"satisfaisant\"",{"$f":"B197/B$198","v":{"$error":"#DIV/0!"}},{"$error":"#DIV/0!"},{"$error":"#DIV/0!"},{"$error":"#DIV/0!"},{"$error":"#DIV/0!"}]
["Total élèves évalués ",{"$f":"B198/B$198","v":{"$error":"#DIV/0!"}},{"$error":"#DIV/0!"},{"$error":"#DIV/0!"},{"$error":"#DIV/0!"},{"$error":"#DIV/0!"}]
[]
[]
[{"$f":"CONCATENATE(\"Classe : \",Informations!$A$21)","v":"Classe : "},"Compréhension de l'oral\nComprendre un message oral","Test spécifique de compréhension de l'écrit\nComprendre un texte","Etude de la langue\nMobiliser ses connaissances en grammaire pour analyser des phrases","Etude de la langue\nMaîtriser l'orthographe","Etude de la langue\nComprendre et mobiliser le lexique"]
["Nb \"à besoins\"",{"$f":"COUNTIF(EVA2PRO_FRANCAIS!J:J,CONCATENATE(Informations!$A$21,\" \",Informations!$A$34))","v":0},{"$f":"COUNTIF(EVA2PRO_FRANCAIS!K:K,CONCATENATE(Informations!$A$21,\" \",Informations!$A$34))","v":0},{"$f":"COUNTIF(EVA2PRO_FRANCAIS!L:L,CONCATENATE(Informations!$A$21,\" \",Informations!$A$34))","v":0},{"$f":"COUNTIF(EVA2PRO_FRANCAIS!M:M,CONCATENATE(Informations!$A$21,\" \",Informations!$A$34))","v":0},{"$f":"COUNTIF(EVA2PRO_FRANCAIS!N:N,CONCATENATE(Informations!$A$21,\" \",Informations!$A$34))","v":0}]
["Nb \"fragile\"",{"$f":"COUNTIF(EVA2PRO_FRANCAIS!J:J,CONCATENATE(Informations!$A$21,\" \",Informations!$A$35))","v":0},{"$f":"COUNTIF(EVA2PRO_FRANCAIS!K:K,CONCATENATE(Informations!$A$21,\" \",Informations!$A$35))","v":0},{"$f":"COUNTIF(EVA2PRO_FRANCAIS!L:L,CONCATENATE(Informations!$A$21,\" \",Informations!$A$35))","v":0},{"$f":"COUNTIF(EVA2PRO_FRANCAIS!M:M,CONCATENATE(Informations!$A$21,\" \",Informations!$A$35))","v":0},{"$f":"COUNTIF(EVA2PRO_FRANCAIS!N:N,CONCATENATE(Informations!$A$21,\" \",Informations!$A$35))","v":0}]
["Nb \"satisfaisant\"",{"$f":"COUNTIF(EVA2PRO_FRANCAIS!J:J,CONCATENATE(Informations!$A$21,\" \",Informations!$A$36))","v":0},{"$f":"COUNTIF(EVA2PRO_FRANCAIS!K:K,CONCATENATE(Informations!$A$21,\" \",Informations!$A$36))","v":0},{"$f":"COUNTIF(EVA2PRO_FRANCAIS!L:L,CONCATENATE(Informations!$A$21,\" \",Informations!$A$36))","v":0},{"$f":"COUNTIF(EVA2PRO_FRANCAIS!M:M,CONCATENATE(Informations!$A$21,\" \",Informations!$A$36))","v":0},{"$f":"COUNTIF(EVA2PRO_FRANCAIS!N:N,CONCATENATE(Informations!$A$21,\" \",Informations!$A$36))","v":0}]
["Total élèves évalués ",{"$f":"SUM(B208:B210)","v":0},{"$f":"SUM(C208:C210)","v":0},0,0,0]
[]
[{"$f":"CONCATENATE(\"Classe : \",Informations!$A$21)","v":"Classe : "},"Compréhension de l'oral\nComprendre un message oral","Test spécifique de compréhension de l'écrit\nComprendre un texte","Etude de la langue\nMobiliser ses connaissances en grammaire pour analyser des phrases","Etude de la langue\nMaîtriser l'orthographe","Etude de la langue\nComprendre et mobiliser le lexique"]
["Taux \"à besoins\"",{"$f":"B208/B$211","v":{"$error":"#DIV/0!"}},{"$f":"C208/C$211","v":{"$error":"#DIV/0!"}},{"$error":"#DIV/0!"},{"$error":"#DIV/0!"},{"$error":"#DIV/0!"}]
["Taux \"fragile\"",{"$f":"B209/B$211","v":{"$error":"#DIV/0!"}},{"$error":"#DIV/0!"},{"$error":"#DIV/0!"},{"$error":"#DIV/0!"},{"$error":"#DIV/0!"}]
["Taux \"satisfaisant\"",{"$f":"B210/B$211","v":{"$error":"#DIV/0!"}},{"$error":"#DIV/0!"},{"$error":"#DIV/0!"},{"$error":"#DIV/0!"},{"$error":"#DIV/0!"}]
["Total élèves évalués ",{"$f":"B211/B$211","v":{"$error":"#DIV/0!"}},{"$error":"#DIV/0!"},{"$error":"#DIV/0!"},{"$error":"#DIV/0!"},{"$error":"#DIV/0!"}]
[]
[]
[{"$f":"CONCATENATE(\"Classe : \",Informations!$A$22)","v":"Classe : "},"Compréhension de l'oral\nComprendre un message oral","Test spécifique de compréhension de l'écrit\nComprendre un texte","Etude de la langue\nMobiliser ses connaissances en grammaire pour analyser des phrases","Etude de la langue\nMaîtriser l'orthographe","Etude de la langue\nComprendre et mobiliser le lexique"]
["Nb \"à besoins\"",{"$f":"COUNTIF(EVA2PRO_FRANCAIS!J:J,CONCATENATE(Informations!$A$22,\" \",Informations!$A$34))","v":0},{"$f":"COUNTIF(EVA2PRO_FRANCAIS!K:K,CONCATENATE(Informations!$A$22,\" \",Informations!$A$34))","v":0},{"$f":"COUNTIF(EVA2PRO_FRANCAIS!L:L,CONCATENATE(Informations!$A$22,\" \",Informations!$A$34))","v":0},{"$f":"COUNTIF(EVA2PRO_FRANCAIS!M:M,CONCATENATE(Informations!$A$22,\" \",Informations!$A$34))","v":0},{"$f":"COUNTIF(EVA2PRO_FRANCAIS!N:N,CONCATENATE(Informations!$A$22,\" \",Informations!$A$34))","v":0}]
["Nb \"fragile\"",{"$f":"COUNTIF(EVA2PRO_FRANCAIS!J:J,CONCATENATE(Informations!$A$22,\" \",Informations!$A$35))","v":0},{"$f":"COUNTIF(EVA2PRO_FRANCAIS!K:K,CONCATENATE(Informations!$A$22,\" \",Informations!$A$35))","v":0},{"$f":"COUNTIF(EVA2PRO_FRANCAIS!L:L,CONCATENATE(Informations!$A$22,\" \",Informations!$A$35))","v":0},{"$f":"COUNTIF(EVA2PRO_FRANCAIS!M:M,CONCATENATE(Informations!$A$22,\" \",Informations!$A$35))","v":0},{"$f":"COUNTIF(EVA2PRO_FRANCAIS!N:N,CONCATENATE(Informations!$A$22,\" \",Informations!$A$35))","v":0}]
["Nb \"satisfaisant\"",{"$f":"COUNTIF(EVA2PRO_FRANCAIS!J:J,CONCATENATE(Informations!$A$22,\" \",Informations!$A$36))","v":0},{"$f":"COUNTIF(EVA2PRO_FRANCAIS!K:K,CONCATENATE(Informations!$A$22,\" \",Informations!$A$36))","v":0},{"$f":"COUNTIF(EVA2PRO_FRANCAIS!L:L,CONCATENATE(Informations!$A$22,\" \",Informations!$A$36))","v":0},{"$f":"COUNTIF(EVA2PRO_FRANCAIS!M:M,CONCATENATE(Informations!$A$22,\" \",Informations!$A$36))","v":0},{"$f":"COUNTIF(EVA2PRO_FRANCAIS!N:N,CONCATENATE(Informations!$A$22,\" \",Informations!$A$36))","v":0}]
["Total élèves évalués ",{"$f":"SUM(B221:B223)","v":0},{"$f":"SUM(C221:C223)","v":0},0,0,0]
[]
[{"$f":"CONCATENATE(\"Classe : \",Informations!$A$22)","v":"Classe : "},"Compréhension de l'oral\nComprendre un message oral","Test spécifique de compréhension de l'écrit\nComprendre un texte","Etude de la langue\nMobiliser ses connaissances en grammaire pour analyser des phrases","Etude de la langue\nMaîtriser l'orthographe","Etude de la langue\nComprendre et mobiliser le lexique"]
["Taux \"à besoins\"",{"$f":"B221/B$224","v":{"$error":"#DIV/0!"}},{"$f":"C221/C$224","v":{"$error":"#DIV/0!"}},{"$error":"#DIV/0!"},{"$error":"#DIV/0!"},{"$error":"#DIV/0!"}]
["Taux \"fragile\"",{"$f":"B222/B$224","v":{"$error":"#DIV/0!"}},{"$error":"#DIV/0!"},{"$error":"#DIV/0!"},{"$error":"#DIV/0!"},{"$error":"#DIV/0!"}]
["Taux \"satisfaisant\"",{"$f":"B223/B$224","v":{"$error":"#DIV/0!"}},{"$error":"#DIV/0!"},{"$error":"#DIV/0!"},{"$error":"#DIV/0!"},{"$error":"#DIV/0!"}]
["Total élèves évalués ",{"$f":"B224/B$224","v":{"$error":"#DIV/0!"}},{"$error":"#DIV/0!"},{"$error":"#DIV/0!"},{"$error":"#DIV/0!"},{"$error":"#DIV/0!"}]
[]
[]
[{"$f":"CONCATENATE(\"Classe : \",Informations!$A$23)","v":"Classe : "},"Compréhension de l'oral\nComprendre un message oral","Test spécifique de compréhension de l'écrit\nComprendre un texte","Etude de la langue\nMobiliser ses connaissances en grammaire pour analyser des phrases","Etude de la langue\nMaîtriser l'orthographe","Etude de la langue\nComprendre et mobiliser le lexique"]
["Nb \"à besoins\"",{"$f":"COUNTIF(EVA2PRO_FRANCAIS!J:J,CONCATENATE(Informations!$A$23,\" \",Informations!$A$34))","v":0},{"$f":"COUNTIF(EVA2PRO_FRANCAIS!K:K,CONCATENATE(Informations!$A$23,\" \",Informations!$A$34))","v":0},{"$f":"COUNTIF(EVA2PRO_FRANCAIS!L:L,CONCATENATE(Informations!$A$23,\" \",Informations!$A$34))","v":0},{"$f":"COUNTIF(EVA2PRO_FRANCAIS!M:M,CONCATENATE(Informations!$A$23,\" \",Informations!$A$34))","v":0},{"$f":"COUNTIF(EVA2PRO_FRANCAIS!N:N,CONCATENATE(Informations!$A$23,\" \",Informations!$A$34))","v":0}]
["Nb \"fragile\"",{"$f":"COUNTIF(EVA2PRO_FRANCAIS!J:J,CONCATENATE(Informations!$A$23,\" \",Informations!$A$35))","v":0},{"$f":"COUNTIF(EVA2PRO_FRANCAIS!K:K,CONCATENATE(Informations!$A$23,\" \",Informations!$A$35))","v":0},{"$f":"COUNTIF(EVA2PRO_FRANCAIS!L:L,CONCATENATE(Informations!$A$23,\" \",Informations!$A$35))","v":0},{"$f":"COUNTIF(EVA2PRO_FRANCAIS!M:M,CONCATENATE(Informations!$A$23,\" \",Informations!$A$35))","v":0},{"$f":"COUNTIF(EVA2PRO_FRANCAIS!N:N,CONCATENATE(Informations!$A$23,\" \",Informations!$A$35))","v":0}]
["Nb \"satisfaisant\"",{"$f":"COUNTIF(EVA2PRO_FRANCAIS!J:J,CONCATENATE(Informations!$A$23,\" \",Informations!$A$36))","v":0},{"$f":"COUNTIF(EVA2PRO_FRANCAIS!K:K,CONCATENATE(Informations!$A$23,\" \",Informations!$A$36))","v":0},{"$f":"COUNTIF(EVA2PRO_FRANCAIS!L:L,CONCATENATE(Informations!$A$23,\" \",Informations!$A$36))","v":0},{"$f":"COUNTIF(EVA2PRO_FRANCAIS!M:M,CONCATENATE(Informations!$A$23,\" \",Informations!$A$36))","v":0},{"$f":"COUNTIF(EVA2PRO_FRANCAIS!N:N,CONCATENATE(Informations!$A$23,\" \",Informations!$A$36))","v":0}]
["Total élèves évalués ",{"$f":"SUM(B234:B236)","v":0},{"$f":"SUM(C234:C236)","v":0},0,0,0]
[]
[{"$f":"CONCATENATE(\"Classe : \",Informations!$A$23)","v":"Classe : "},"Compréhension de l'oral\nComprendre un message oral","Test spécifique de compréhension de l'écrit\nComprendre un texte","Etude de la langue\nMobiliser ses connaissances en grammaire pour analyser des phrases","Etude de la langue\nMaîtriser l'orthographe","Etude de la langue\nComprendre et mobiliser le lexique"]
["Taux \"à besoins\"",{"$f":"B234/B$237","v":{"$error":"#DIV/0!"}},{"$f":"C234/C$237","v":{"$error":"#DIV/0!"}},{"$error":"#DIV/0!"},{"$error":"#DIV/0!"},{"$error":"#DIV/0!"}]
["Taux \"fragile\"",{"$f":"B235/B$237","v":{"$error":"#DIV/0!"}},{"$error":"#DIV/0!"},{"$error":"#DIV/0!"},{"$error":"#DIV/0!"},{"$error":"#DIV/0!"}]
["Taux \"satisfaisant\"",{"$f":"B236/B$237","v":{"$error":"#DIV/0!"}},{"$error":"#DIV/0!"},{"$error":"#DIV/0!"},{"$error":"#DIV/0!"},{"$error":"#DIV/0!"}]
["Total élèves évalués ",{"$f":"B237/B$224","v":{"$error":"#DIV/0!"}},{"$error":"#DIV/0!"},{"$error":"#DIV/0!"},{"$error":"#DIV/0!"},{"$error":"#DIV/0!"}]
[]
[]
[{"$f":"CONCATENATE(\"Classe : \",Informations!$A$24)","v":"Classe : "},"Compréhension de l'oral\nComprendre un message oral","Test spécifique de compréhension de l'écrit\nComprendre un texte","Etude de la langue\nMobiliser ses connaissances en grammaire pour analyser des phrases","Etude de la langue\nMaîtriser l'orthographe","Etude de la langue\nComprendre et mobiliser le lexique"]
["Nb \"à besoins\"",{"$f":"COUNTIF(EVA2PRO_FRANCAIS!J:J,CONCATENATE(Informations!$A$24,\" \",Informations!$A$34))","v":0},{"$f":"COUNTIF(EVA2PRO_FRANCAIS!K:K,CONCATENATE(Informations!$A$24,\" \",Informations!$A$34))","v":0},{"$f":"COUNTIF(EVA2PRO_FRANCAIS!L:L,CONCATENATE(Informations!$A$24,\" \",Informations!$A$34))","v":0},{"$f":"COUNTIF(EVA2PRO_FRANCAIS!M:M,CONCATENATE(Informations!$A$24,\" \",Informations!$A$34))","v":0},{"$f":"COUNTIF(EVA2PRO_FRANCAIS!N:N,CONCATENATE(Informations!$A$24,\" \",Informations!$A$34))","v":0}]
["Nb \"fragile\"",{"$f":"COUNTIF(EVA2PRO_FRANCAIS!J:J,CONCATENATE(Informations!$A$24,\" \",Informations!$A$35))","v":0},{"$f":"COUNTIF(EVA2PRO_FRANCAIS!K:K,CONCATENATE(Informations!$A$24,\" \",Informations!$A$35))","v":0},{"$f":"COUNTIF(EVA2PRO_FRANCAIS!L:L,CONCATENATE(Informations!$A$24,\" \",Informations!$A$35))","v":0},{"$f":"COUNTIF(EVA2PRO_FRANCAIS!M:M,CONCATENATE(Informations!$A$24,\" \",Informations!$A$35))","v":0},{"$f":"COUNTIF(EVA2PRO_FRANCAIS!N:N,CONCATENATE(Informations!$A$24,\" \",Informations!$A$35))","v":0}]
["Nb \"satisfaisant\"",{"$f":"COUNTIF(EVA2PRO_FRANCAIS!J:J,CONCATENATE(Informations!$A$24,\" \",Informations!$A$36))","v":0},{"$f":"COUNTIF(EVA2PRO_FRANCAIS!K:K,CONCATENATE(Informations!$A$24,\" \",Informations!$A$36))","v":0},{"$f":"COUNTIF(EVA2PRO_FRANCAIS!L:L,CONCATENATE(Informations!$A$24,\" \",Informations!$A$36))","v":0},{"$f":"COUNTIF(EVA2PRO_FRANCAIS!M:M,CONCATENATE(Informations!$A$24,\" \",Informations!$A$36))","v":0},{"$f":"COUNTIF(EVA2PRO_FRANCAIS!N:N,CONCATENATE(Informations!$A$24,\" \",Informations!$A$36))","v":0}]
["Total élèves évalués ",{"$f":"SUM(B247:B249)","v":0},{"$f":"SUM(C247:C249)","v":0},0,0,0]
[]
[{"$f":"CONCATENATE(\"Classe : \",Informations!$A$24)","v":"Classe : "},"Compréhension de l'oral\nComprendre un message oral","Test spécifique de compréhension de l'écrit\nComprendre un texte","Etude de la langue\nMobiliser ses connaissances en grammaire pour analyser des phrases","Etude de la langue\nMaîtriser l'orthographe","Etude de la langue\nComprendre et mobiliser le lexique"]
["Taux \"à besoins\"",{"$f":"B247/B$250","v":{"$error":"#DIV/0!"}},{"$f":"C247/C$250","v":{"$error":"#DIV/0!"}},{"$error":"#DIV/0!"},{"$error":"#DIV/0!"},{"$error":"#DIV/0!"}]
["Taux \"fragile\"",{"$f":"B248/B$250","v":{"$error":"#DIV/0!"}},{"$error":"#DIV/0!"},{"$error":"#DIV/0!"},{"$error":"#DIV/0!"},{"$error":"#DIV/0!"}]
["Taux \"satisfaisant\"",{"$f":"B249/B$250","v":{"$error":"#DIV/0!"}},{"$error":"#DIV/0!"},{"$error":"#DIV/0!"},{"$error":"#DIV/0!"},{"$error":"#DIV/0!"}]
["Total élèves évalués ",{"$f":"B250/B$250","v":{"$error":"#DIV/0!"}},{"$error":"#DIV/0!"},{"$error":"#DIV/0!"},{"$error":"#DIV/0!"},{"$error":"#DIV/0!"}]
[]
[]
[{"$f":"CONCATENATE(\"Classe : \",Informations!$A$25)","v":"Classe : "},"Compréhension de l'oral\nComprendre un message oral","Test spécifique de compréhension de l'écrit\nComprendre un texte","Etude de la langue\nMobiliser ses connaissances en grammaire pour analyser des phrases","Etude de la langue\nMaîtriser l'orthographe","Etude de la langue\nComprendre et mobiliser le lexique"]
["Nb \"à besoins\"",{"$f":"COUNTIF(EVA2PRO_FRANCAIS!J:J,CONCATENATE(Informations!$A$25,\" \",Informations!$A$34))","v":0},{"$f":"COUNTIF(EVA2PRO_FRANCAIS!K:K,CONCATENATE(Informations!$A$25,\" \",Informations!$A$34))","v":0},{"$f":"COUNTIF(EVA2PRO_FRANCAIS!L:L,CONCATENATE(Informations!$A$25,\" \",Informations!$A$34))","v":0},{"$f":"COUNTIF(EVA2PRO_FRANCAIS!M:M,CONCATENATE(Informations!$A$25,\" \",Informations!$A$34))","v":0},{"$f":"COUNTIF(EVA2PRO_FRANCAIS!N:N,CONCATENATE(Informations!$A$25,\" \",Informations!$A$34))","v":0}]
["Nb \"fragile\"",{"$f":"COUNTIF(EVA2PRO_FRANCAIS!J:J,CONCATENATE(Informations!$A$25,\" \",Informations!$A$35))","v":0},{"$f":"COUNTIF(EVA2PRO_FRANCAIS!K:K,CONCATENATE(Informations!$A$25,\" \",Informations!$A$35))","v":0},{"$f":"COUNTIF(EVA2PRO_FRANCAIS!L:L,CONCATENATE(Informations!$A$25,\" \",Informations!$A$35))","v":0},{"$f":"COUNTIF(EVA2PRO_FRANCAIS!M:M,CONCATENATE(Informations!$A$25,\" \",Informations!$A$35))","v":0},{"$f":"COUNTIF(EVA2PRO_FRANCAIS!N:N,CONCATENATE(Informations!$A$25,\" \",Informations!$A$35))","v":0}]
["Nb \"satisfaisant\"",{"$f":"COUNTIF(EVA2PRO_FRANCAIS!J:J,CONCATENATE(Informations!$A$25,\" \",Informations!$A$36))","v":0},{"$f":"COUNTIF(EVA2PRO_FRANCAIS!K:K,CONCATENATE(Informations!$A$25,\" \",Informations!$A$36))","v":0},{"$f":"COUNTIF(EVA2PRO_FRANCAIS!L:L,CONCATENATE(Informations!$A$25,\" \",Informations!$A$36))","v":0},{"$f":"COUNTIF(EVA2PRO_FRANCAIS!M:M,CONCATENATE(Informations!$A$25,\" \",Informations!$A$36))","v":0},{"$f":"COUNTIF(EVA2PRO_FRANCAIS!N:N,CONCATENATE(Informations!$A$25,\" \",Informations!$A$36))","v":0}]
["Total élèves évalués ",{"$f":"SUM(B260:B262)","v":0},{"$f":"SUM(C260:C262)","v":0},0,0,0]
[]
[{"$f":"CONCATENATE(\"Classe : \",Informations!$A$25)","v":"Classe : "},"Compréhension de l'oral\nComprendre un message oral","Test spécifique de compréhension de l'écrit\nComprendre un texte","Etude de la langue\nMobiliser ses connaissances en grammaire pour analyser des phrases","Etude de la langue\nMaîtriser l'orthographe","Etude de la langue\nComprendre et mobiliser le lexique"]
["Taux \"à besoins\"",{"$f":"B260/B$263","v":{"$error":"#DIV/0!"}},{"$f":"C260/C$263","v":{"$error":"#DIV/0!"}},{"$error":"#DIV/0!"},{"$error":"#DIV/0!"},{"$error":"#DIV/0!"}]
["Taux \"fragile\"",{"$f":"B261/B$263","v":{"$error":"#DIV/0!"}},{"$error":"#DIV/0!"},{"$error":"#DIV/0!"},{"$error":"#DIV/0!"},{"$error":"#DIV/0!"}]
["Taux \"satisfaisant\"",{"$f":"B262/B$263","v":{"$error":"#DIV/0!"}},{"$error":"#DIV/0!"},{"$error":"#DIV/0!"},{"$error":"#DIV/0!"},{"$error":"#DIV/0!"}]
["Total élèves évalués ",{"$f":"B263/B$263","v":{"$error":"#DIV/0!"}},{"$error":"#DIV/0!"},{"$error":"#DIV/0!"},{"$error":"#DIV/0!"},{"$error":"#DIV/0!"}]

{"sheet":"TDB_CLASSES_MATH","index":3,"n_rows":269,"n_cols":5,"rows_kept":269}
["Tableau de bord de l'établissement :",{"$f":"RIGHT(C1,8)","v":"0"},{"$f":"TDB_ETAB!B1","v":0},null,{"v":0,"d":"0.0%"}]
[]
["Mathématiques","Répartition des proportions d'élèves pour chaque compétence (Rappel TDB_ETAB)"]
[null,"Compréhension de l'oral"]
["Référence : Lycée","Test spécifique en automatismes\nMobiliser directement des procédures et des connaissances","Espace et géométrie\nConnaître et utiliser des notions de géométrie","Nombres et calculs\nConnaître les nombres et les utiliser dans des calculs","Organisation et gestion de données, fonctions\nConnaître et utiliser des données et la notion de fonction"]
["Taux \"à besoins\"",{"$f":"TDB_ETAB!B31","v":{"$error":"#DIV/0!"}},{"$f":"TDB_ETAB!C31","v":{"$error":"#DIV/0!"}},{"$f":"TDB_ETAB!D31","v":{"$error":"#DIV/0!"}},{"$f":"TDB_ETAB!E31","v":{"$error":"#DIV/0!"}}]
["Taux \"fragile\"",{"$f":"TDB_ETAB!B32","v":{"$error":"#DIV/0!"}},{"$f":"TDB_ETAB!C32","v":{"$error":"#DIV/0!"}},{"$f":"TDB_ETAB!D32","v":{"$error":"#DIV/0!"}},{"$f":"TDB_ETAB!E32","v":{"$error":"#DIV/0!"}}]
["Taux \"satisfaisant\"",{"$f":"TDB_ETAB!B33","v":{"$error":"#DIV/0!"}},{"$f":"TDB_ETAB!C33","v":{"$error":"#DIV/0!"}},{"$f":"TDB_ETAB!D33","v":{"$error":"#DIV/0!"}},{"$f":"TDB_ETAB!E33","v":{"$error":"#DIV/0!"}}]
["Total élèves évalués ",{"$f":"TDB_ETAB!B17","v":{"$error":"#DIV/0!"}},{"$f":"TDB_ETAB!C17","v":{"$error":"#DIV/0!"}},{"$f":"TDB_ETAB!D17","v":{"$error":"#DIV/0!"}},{"$f":"TDB_ETAB!E17","v":{"$error":"#DIV/0!"}}]
[]
[]
[{"$f":"CONCATENATE(\"Classe : \",Informations!$A$6)","v":"Classe : "},"Test spécifique en automatismes\nMobiliser directement des procédures et des connaissances","Espace et géométrie\nConnaître et utiliser des notions de géométrie","Nombres et calculs\nConnaître les nombres et les utiliser dans des calculs","Organisation et gestion de données, fonctions\nConnaître et utiliser des données et la notion de fonction"]
["Nb \"à besoins\"",{"$f":"COUNTIF(EVA2PRO_MATHS!J:J,CONCATENATE(Informations!$A$6,\" \",Informations!$A$34))","v":0},{"$f":"COUNTIF(EVA2PRO_MATHS!K:K,CONCATENATE(Informations!$A$6,\" \",Informations!$A$34))","v":0},{"$f":"COUNTIF(EVA2PRO_MATHS!L:L,CONCATENATE(Informations!$A$6,\" \",Informations!$A$34))","v":0},{"$f":"COUNTIF(EVA2PRO_MATHS!M:M,CONCATENATE(Informations!$A$6,\" \",Informations!$A$34))","v":0}]
["Nb \"fragile\"",{"$f":"COUNTIF(EVA2PRO_MATHS!J:J,CONCATENATE(Informations!$A$6,\" \",Informations!$A$35))","v":0},{"$f":"COUNTIF(EVA2PRO_MATHS!K:K,CONCATENATE(Informations!$A$6,\" \",Informations!$A$35))","v":0},{"$f":"COUNTIF(EVA2PRO_MATHS!L:L,CONCATENATE(Informations!$A$6,\" \",Informations!$A$35))","v":0},{"$f":"COUNTIF(EVA2PRO_MATHS!M:M,CONCATENATE(Informations!$A$6,\" \",Informations!$A$35))","v":0}]
["Nb \"satisfaisant\"",{"$f":"COUNTIF(EVA2PRO_MATHS!J:J,CONCATENATE(Informations!$A$6,\" \",Informations!$A$36))","v":0},{"$f":"COUNTIF(EVA2PRO_MATHS!K:K,CONCATENATE(Informations!$A$6,\" \",Informations!$A$36))","v":0},{"$f":"COUNTIF(EVA2PRO_MATHS!L:L,CONCATENATE(Informations!$A$6,\" \",Informations!$A$36))","v":0},{"$f":"COUNTIF(EVA2PRO_MATHS!M:M,CONCATENATE(Informations!$A$6,\" \",Informations!$A$36))","v":0}]
["Total élèves évalués ",{"$f":"SUM(B13:B15)","v":0},{"$f":"SUM(C13:C15)","v":0},0,0]
[]
[{"$f":"CONCATENATE(\"Classe : \",Informations!$A$6)","v":"Classe : "},"Test spécifique en automatismes\nMobiliser directement des procédures et des connaissances","Espace et géométrie\nConnaître et utiliser des notions de géométrie","Nombres et calculs\nConnaître les nombres et les utiliser dans des calculs","Organisation et gestion de données, fonctions\nConnaître et utiliser des données et la notion de fonction"]
["Taux \"à besoins\"",{"$f":"B13/B$16","v":{"$error":"#DIV/0!"}},{"$f":"C13/C$16","v":{"$error":"#DIV/0!"}},{"$error":"#DIV/0!"},{"$error":"#DIV/0!"}]
["Taux \"fragile\"",{"$f":"B14/B$16","v":{"$error":"#DIV/0!"}},{"$error":"#DIV/0!"},{"$error":"#DIV/0!"},{"$error":"#DIV/0!"}]
["Taux \"satisfaisant\"",{"$f":"B15/B$16","v":{"$error":"#DIV/0!"}},{"$error":"#DIV/0!"},{"$error":"#DIV/0!"},{"$error":"#DIV/0!"}]
["Total élèves évalués ",{"$f":"B16/B$16","v":{"$error":"#DIV/0!"}},{"$error":"#DIV/0!"},{"$error":"#DIV/0!"},{"$error":"#DIV/0!"}]
[]
[]
[{"$f":"CONCATENATE(\"Classe : \",Informations!$A$7)","v":"Classe : "},"Test spécifique en automatismes\nMobiliser directement des procédures et des connaissances","Espace et géométrie\nConnaître et utiliser des notions de géométrie","Nombres et calculs\nConnaître les nombres et les utiliser dans des calculs","Organisation et gestion de données, fonctions\nConnaître et utiliser des données et la notion de fonction"]
["Nb \"à besoins\"",{"$f":"COUNTIF(EVA2PRO_MATHS!J:J,CONCATENATE(Informations!$A$7,\" \",Informations!$A$34))","v":0},{"$f":"COUNTIF(EVA2PRO_MATHS!K:K,CONCATENATE(Informations!$A$7,\" \",Informations!$A$34))","v":0},{"$f":"COUNTIF(EVA2PRO_MATHS!L:L,CONCATENATE(Informations!$A$7,\" \",Informations!$A$34))","v":0},{"$f":"COUNTIF(EVA2PRO_MATHS!M:M,CONCATENATE(Informations!$A$7,\" \",Informations!$A$34))","v":0}]
["Nb \"fragile\"",{"$f":"COUNTIF(EVA2PRO_MATHS!J:J,CONCATENATE(Informations!$A$7,\" \",Informations!$A$35))","v":0},{"$f":"COUNTIF(EVA2PRO_MATHS!K:K,CONCATENATE(Informations!$A$7,\" \",Informations!$A$35))","v":0},{"$f":"COUNTIF(EVA2PRO_MATHS!L:L,CONCATENATE(Informations!$A$7,\" \",Informations!$A$35))","v":0},{"$f":"COUNTIF(EVA2PRO_MATHS!M:M,CONCATENATE(Informations!$A$7,\" \",Informations!$A$35))","v":0}]
["Nb \"satisfaisant\"",{"$f":"COUNTIF(EVA2PRO_MATHS!J:J,CONCATENATE(Informations!$A$7,\" \",Informations!$A$36))","v":0},{"$f":"COUNTIF(EVA2PRO_MATHS!K:K,CONCATENATE(Informations!$A$7,\" \",Informations!$A$36))","v":0},{"$f":"COUNTIF(EVA2PRO_MATHS!L:L,CONCATENATE(Informations!$A$7,\" \",Informations!$A$36))","v":0},{"$f":"COUNTIF(EVA2PRO_MATHS!M:M,CONCATENATE(Informations!$A$7,\" \",Informations!$A$36))","v":0}]
["Total élèves évalués ",{"$f":"SUM(B26:B28)","v":0},0,0,0]
[]
[{"$f":"CONCATENATE(\"Classe : \",Informations!$A$7)","v":"Classe : "},"Test spécifique en automatismes\nMobiliser directement des procédures et des connaissances","Espace et géométrie\nConnaître et utiliser des notions de géométrie","Nombres et calculs\nConnaître les nombres et les utiliser dans des calculs","Organisation et gestion de données, fonctions\nConnaître et utiliser des données et la notion de fonction"]
["Taux \"à besoins\"",{"$f":"B26/B$29","v":{"$error":"#DIV/0!"}},{"$f":"C26/C$29","v":{"$error":"#DIV/0!"}},{"$error":"#DIV/0!"},{"$error":"#DIV/0!"}]
["Taux \"fragile\"",{"$f":"B27/B$29","v":{"$error":"#DIV/0!"}},{"$error":"#DIV/0!"},{"$error":"#DIV/0!"},{"$error":"#DIV/0!"}]
["Taux \"satisfaisant\"",{"$f":"B28/B$29","v":{"$error":"#DIV/0!"}},{"$error":"#DIV/0!"},{"$error":"#DIV/0!"},{"$error":"#DIV/0!"}]
["Total élèves évalués ",{"$f":"B29/B$29","v":{"$error":"#DIV/0!"}},{"$error":"#DIV/0!"},{"$error":"#DIV/0!"},{"$error":"#DIV/0!"}]
[]
[]
[{"$f":"CONCATENATE(\"Classe : \",Informations!$A$8)","v":"Classe : "},"Test spécifique en automatismes\nMobiliser directement des procédures et des connaissances","Espace et géométrie\nConnaître et utiliser des notions de géométrie","Nombres et calculs\nConnaître les nombres et les utiliser dans des calculs","Organisation et gestion de données, fonctions\nConnaître et utiliser des données et la notion de fonction"]
["Nb \"à besoins\"",{"$f":"COUNTIF(EVA2PRO_MATHS!J:J,CONCATENATE(Informations!$A$8,\" \",Informations!$A$34))","v":0},{"$f":"COUNTIF(EVA2PRO_MATHS!K:K,CONCATENATE(Informations!$A$8,\" \",Informations!$A$34))","v":0},{"$f":"COUNTIF(EVA2PRO_MATHS!L:L,CONCATENATE(Informations!$A$8,\" \",Informations!$A$34))","v":0},{"$f":"COUNTIF(EVA2PRO_MATHS!M:M,CONCATENATE(Informations!$A$8,\" \",Informations!$A$34))","v":0}]
["Nb \"fragile\"",{"$f":"COUNTIF(EVA2PRO_MATHS!J:J,CONCATENATE(Informations!$A$8,\" \",Informations!$A$35))","v":0},{"$f":"COUNTIF(EVA2PRO_MATHS!K:K,CONCATENATE(Informations!$A$8,\" \",Informations!$A$35))","v":0},{"$f":"COUNTIF(EVA2PRO_MATHS!L:L,CONCATENATE(Informations!$A$8,\" \",Informations!$A$35))","v":0},{"$f":"COUNTIF(EVA2PRO_MATHS!M:M,CONCATENATE(Informations!$A$8,\" \",Informations!$A$35))","v":0}]
["Nb \"satisfaisant\"",{"$f":"COUNTIF(EVA2PRO_MATHS!J:J,CONCATENATE(Informations!$A$8,\" \",Informations!$A$36))","v":0},{"$f":"COUNTIF(EVA2PRO_MATHS!K:K,CONCATENATE(Informations!$A$8,\" \",Informations!$A$36))","v":0},{"$f":"COUNTIF(EVA2PRO_MATHS!L:L,CONCATENATE(Informations!$A$8,\" \",Informations!$A$36))","v":0},{"$f":"COUNTIF(EVA2PRO_MATHS!M:M,CONCATENATE(Informations!$A$8,\" \",Informations!$A$36))","v":0}]
["Total élèves évalués ",{"$f":"SUM(B39:B41)","v":0},{"$f":"SUM(C39:C41)","v":0},0,0]
[]
[{"$f":"CONCATENATE(\"Classe : \",Informations!$A$8)","v":"Classe : "},"Test spécifique en automatismes\nMobiliser directement des procédures et des connaissances","Espace et géométrie\nConnaître et utiliser des notions de géométrie","Nombres et calculs\nConnaître les nombres et les utiliser dans des calculs","Organisation et gestion de données, fonctions\nConnaître et utiliser des données et la notion de fonction"]
["Taux \"à besoins\"",{"$f":"B39/B$42","v":{"$error":"#DIV/0!"}},{"$f":"C39/C$42","v":{"$error":"#DIV/0!"}},{"$error":"#DIV/0!"},{"$error":"#DIV/0!"}]
["Taux \"fragile\"",{"$f":"B40/B$42","v":{"$error":"#DIV/0!"}},{"$error":"#DIV/0!"},{"$error":"#DIV/0!"},{"$error":"#DIV/0!"}]
["Taux \"satisfaisant\"",{"$f":"B41/B$42","v":{"$error":"#DIV/0!"}},{"$error":"#DIV/0!"},{"$error":"#DIV/0!"},{"$error":"#DIV/0!"}]
["Total élèves évalués ",{"$f":"B42/B$42","v":{"$error":"#DIV/0!"}},{"$error":"#DIV/0!"},{"$error":"#DIV/0!"},{"$error":"#DIV/0!"}]
[]
[]
[{"$f":"CONCATENATE(\"Classe : \",Informations!$A$9)","v":"Classe : "},"Test spécifique en automatismes\nMobiliser directement des procédures et des connaissances","Espace et géométrie\nConnaître et utiliser des notions de géométrie","Nombres et calculs\nConnaître les nombres et les utiliser dans des calculs","Organisation et gestion de données, fonctions\nConnaître et utiliser des données et la notion de fonction"]
["Nb \"à besoins\"",{"$f":"COUNTIF(EVA2PRO_MATHS!J:J,CONCATENATE(Informations!$A$9,\" \",Informations!$A$34))","v":0},{"$f":"COUNTIF(EVA2PRO_MATHS!K:K,CONCATENATE(Informations!$A$9,\" \",Informations!$A$34))","v":0},{"$f":"COUNTIF(EVA2PRO_MATHS!L:L,CONCATENATE(Informations!$A$9,\" \",Informations!$A$34))","v":0},{"$f":"COUNTIF(EVA2PRO_MATHS!M:M,CONCATENATE(Informations!$A$9,\" \",Informations!$A$34))","v":0}]
["Nb \"fragile\"",{"$f":"COUNTIF(EVA2PRO_MATHS!J:J,CONCATENATE(Informations!$A$9,\" \",Informations!$A$35))","v":0},{"$f":"COUNTIF(EVA2PRO_MATHS!K:K,CONCATENATE(Informations!$A$9,\" \",Informations!$A$35))","v":0},{"$f":"COUNTIF(EVA2PRO_MATHS!L:L,CONCATENATE(Informations!$A$9,\" \",Informations!$A$35))","v":0},{"$f":"COUNTIF(EVA2PRO_MATHS!M:M,CONCATENATE(Informations!$A$9,\" \",Informations!$A$35))","v":0}]
["Nb \"satisfaisant\"",{"$f":"COUNTIF(EVA2PRO_MATHS!J:J,CONCATENATE(Informations!$A$9,\" \",Informations!$A$36))","v":0},{"$f":"COUNTIF(EVA2PRO_MATHS!K:K,CONCATENATE(Informations!$A$9,\" \",Informations!$A$36))","v":0},{"$f":"COUNTIF(EVA2PRO_MATHS!L:L,CONCATENATE(Informations!$A$9,\" \",Informations!$A$36))","v":0},{"$f":"COUNTIF(EVA2PRO_MATHS!M:M,CONCATENATE(Informations!$A$9,\" \",Informations!$A$36))","v":0}]
["Total élèves évalués ",{"$f":"SUM(B52:B54)","v":0},{"$f":"SUM(C52:C54)","v":0},0,0]
[]
[{"$f":"CONCATENATE(\"Classe : \",Informations!$A$9)","v":"Classe : "},"Test spécifique en automatismes\nMobiliser directement des procédures et des connaissances","Espace et géométrie\nConnaître et utiliser des notions de géométrie","Nombres et calculs\nConnaître les nombres et les utiliser dans des calculs","Organisation et gestion de données, fonctions\nConnaître et utiliser des données et la notion de fonction"]
["Taux \"à besoins\"",{"$f":"B52/B$55","v":{"$error":"#DIV/0!"}},{"$f":"C52/C$55","v":{"$error":"#DIV/0!"}},{"$error":"#DIV/0!"},{"$error":"#DIV/0!"}]
["Taux \"fragile\"",{"$f":"B53/B$55","v":{"$error":"#DIV/0!"}},{"$error":"#DIV/0!"},{"$error":"#DIV/0!"},{"$error":"#DIV/0!"}]
["Taux \"satisfaisant\"",{"$f":"B54/B$55","v":{"$error":"#DIV/0!"}},{"$error":"#DIV/0!"},{"$error":"#DIV/0!"},{"$error":"#DIV/0!"}]
["Total élèves évalués ",{"$f":"B55/B$55","v":{"$error":"#DIV/0!"}},{"$error":"#DIV/0!"},{"$error":"#DIV/0!"},{"$error":"#DIV/0!"}]
[]
[]
[{"$f":"CONCATENATE(\"Classe : \",Informations!$A$10)","v":"Classe : "},"Test spécifique en automatismes\nMobiliser directement des procédures et des connaissances","Espace et géométrie\nConnaître et utiliser des notions de géométrie","Nombres et calculs\nConnaître les nombres et les utiliser dans des calculs","Organisation et gestion de données, fonctions\nConnaître et utiliser des données et la notion de fonction"]
["Nb \"à besoins\"",{"$f":"COUNTIF(EVA2PRO_MATHS!J:J,CONCATENATE(Informations!$A$10,\" \",Informations!$A$34))","v":0},{"$f":"COUNTIF(EVA2PRO_MATHS!K:K,CONCATENATE(Informations!$A$10,\" \",Informations!$A$34))","v":0},{"$f":"COUNTIF(EVA2PRO_MATHS!L:L,CONCATENATE(Informations!$A$10,\" \",Informations!$A$34))","v":0},{"$f":"COUNTIF(EVA2PRO_MATHS!M:M,CONCATENATE(Informations!$A$10,\" \",Informations!$A$34))","v":0}]
["Nb \"fragile\"",{"$f":"COUNTIF(EVA2PRO_MATHS!J:J,CONCATENATE(Informations!$A$10,\" \",Informations!$A$35))","v":0},{"$f":"COUNTIF(EVA2PRO_MATHS!K:K,CONCATENATE(Informations!$A$10,\" \",Informations!$A$35))","v":0},{"$f":"COUNTIF(EVA2PRO_MATHS!L:L,CONCATENATE(Informations!$A$10,\" \",Informations!$A$35))","v":0},{"$f":"COUNTIF(EVA2PRO_MATHS!M:M,CONCATENATE(Informations!$A$10,\" \",Informations!$A$35))","v":0}]
["Nb \"satisfaisant\"",{"$f":"COUNTIF(EVA2PRO_MATHS!J:J,CONCATENATE(Informations!$A$10,\" \",Informations!$A$36))","v":0},{"$f":"COUNTIF(EVA2PRO_MATHS!K:K,CONCATENATE(Informations!$A$10,\" \",Informations!$A$36))","v":0},{"$f":"COUNTIF(EVA2PRO_MATHS!L:L,CONCATENATE(Informations!$A$10,\" \",Informations!$A$36))","v":0},{"$f":"COUNTIF(EVA2PRO_MATHS!M:M,CONCATENATE(Informations!$A$10,\" \",Informations!$A$36))","v":0}]
["Total élèves évalués ",{"$f":"SUM(B65:B67)","v":0},{"$f":"SUM(C65:C67)","v":0},0,0]
[]
[{"$f":"CONCATENATE(\"Classe : \",Informations!$A$10)","v":"Classe : "},"Test spécifique en automatismes\nMobiliser directement des procédures et des connaissances","Espace et géométrie\nConnaître et utiliser des notions de géométrie","Nombres et calculs\nConnaître les nombres et les utiliser dans des calculs","Organisation et gestion de données, fonctions\nConnaître et utiliser des données et la notion de fonction"]
["Taux \"à besoins\"",{"$f":"B65/B$68","v":{"$error":"#DIV/0!"}},{"$f":"C65/C$68","v":{"$error":"#DIV/0!"}},{"$error":"#DIV/0!"},{"$error":"#DIV/0!"}]
["Taux \"fragile\"",{"$f":"B66/B$68","v":{"$error":"#DIV/0!"}},{"$error":"#DIV/0!"},{"$error":"#DIV/0!"},{"$error":"#DIV/0!"}]
["Taux \"satisfaisant\"",{"$f":"B67/B$68","v":{"$error":"#DIV/0!"}},{"$error":"#DIV/0!"},{"$error":"#DIV/0!"},{"$error":"#DIV/0!"}]
["Total élèves évalués ",{"$f":"B68/B$68","v":{"$error":"#DIV/0!"}},{"$error":"#DIV/0!"},{"$error":"#DIV/0!"},{"$error":"#DIV/0!"}]
[]
[]
[{"$f":"CONCATENATE(\"Classe : \",Informations!$A$11)","v":"Classe : "},"Test spécifique en automatismes\nMobiliser directement des procédures et des connaissances","Espace et géométrie\nConnaître et utiliser des notions de géométrie","Nombres et calculs\nConnaître les nombres et les utiliser dans des calculs","Organisation et gestion de données, fonctions\nConnaître et utiliser des données et la notion de fonction"]
["Nb \"à besoins\"",{"$f":"COUNTIF(EVA2PRO_MATHS!J:J,CONCATENATE(Informations!$A$11,\" \",Informations!$A$34))","v":0},{"$f":"COUNTIF(EVA2PRO_MATHS!K:K,CONCATENATE(Informations!$A$11,\" \",Informations!$A$34))","v":0},{"$f":"COUNTIF(EVA2PRO_MATHS!L:L,CONCATENATE(Informations!$A$11,\" \",Informations!$A$34))","v":0},{"$f":"COUNTIF(EVA2PRO_MATHS!M:M,CONCATENATE(Informations!$A$11,\" \",Informations!$A$34))","v":0}]
["Nb \"fragile\"",{"$f":"COUNTIF(EVA2PRO_MATHS!J:J,CONCATENATE(Informations!$A$11,\" \",Informations!$A$35))","v":0},{"$f":"COUNTIF(EVA2PRO_MATHS!K:K,CONCATENATE(Informations!$A$11,\" \",Informations!$A$35))","v":0},{"$f":"COUNTIF(EVA2PRO_MATHS!L:L,CONCATENATE(Informations!$A$11,\" \",Informations!$A$35))","v":0},{"$f":"COUNTIF(EVA2PRO_MATHS!M:M,CONCATENATE(Informations!$A$11,\" \",Informations!$A$35))","v":0}]
["Nb \"satisfaisant\"",{"$f":"COUNTIF(EVA2PRO_MATHS!J:J,CONCATENATE(Informations!$A$11,\" \",Informations!$A$36))","v":0},{"$f":"COUNTIF(EVA2PRO_MATHS!K:K,CONCATENATE(Informations!$A$11,\" \",Informations!$A$36))","v":0},{"$f":"COUNTIF(EVA2PRO_MATHS!L:L,CONCATENATE(Informations!$A$11,\" \",Informations!$A$36))","v":0},{"$f":"COUNTIF(EVA2PRO_MATHS!M:M,CONCATENATE(Informations!$A$11,\" \",Informations!$A$36))","v":0}]
["Total élèves évalués ",{"$f":"SUM(B78:B80)","v":0},{"$f":"SUM(C78:C80)","v":0},0,0]
[]
[{"$f":"CONCATENATE(\"Classe : \",Informations!$A$11)","v":"Classe : "},"Test spécifique en automatismes\nMobiliser directement des procédures et des connaissances","Espace et géométrie\nConnaître et utiliser des notions de géométrie","Nombres et calculs\nConnaître les nombres et les utiliser dans des calculs","Organisation et gestion de données, fonctions\nConnaître et utiliser des données et la notion de fonction"]
["Taux \"à besoins\"",{"$f":"B78/B$81","v":{"$error":"#DIV/0!"}},{"$f":"C78/C$81","v":{"$error":"#DIV/0!"}},{"$error":"#DIV/0!"},{"$error":"#DIV/0!"}]
["Taux \"fragile\"",{"$f":"B79/B$81","v":{"$error":"#DIV/0!"}},{"$error":"#DIV/0!"},{"$error":"#DIV/0!"},{"$error":"#DIV/0!"}]
["Taux \"satisfaisant\"",{"$f":"B80/B$81","v":{"$error":"#DIV/0!"}},{"$error":"#DIV/0!"},{"$error":"#DIV/0!"},{"$error":"#DIV/0!"}]
["Total élèves évalués ",{"$f":"B81/B$81","v":{"$error":"#DIV/0!"}},{"$error":"#DIV/0!"},{"$error":"#DIV/0!"},{"$error":"#DIV/0!"}]
[]
[]
[{"$f":"CONCATENATE(\"Classe : \",Informations!$A$12)","v":"Classe : "},"Test spécifique en automatismes\nMobiliser directement des procédures et des connaissances","Espace et géométrie\nConnaître et utiliser des notions de géométrie","Nombres et calculs\nConnaître les nombres et les utiliser dans des calculs","Organisation et gestion de données, fonctions\nConnaître et utiliser des données et la notion de fonction"]
["Nb \"à besoins\"",{"$f":"COUNTIF(EVA2PRO_MATHS!J:J,CONCATENATE(Informations!$A$12,\" \",Informations!$A$34))","v":0},{"$f":"COUNTIF(EVA2PRO_MATHS!K:K,CONCATENATE(Informations!$A$12,\" \",Informations!$A$34))","v":0},{"$f":"COUNTIF(EVA2PRO_MATHS!L:L,CONCATENATE(Informations!$A$12,\" \",Informations!$A$34))","v":0},{"$f":"COUNTIF(EVA2PRO_MATHS!M:M,CONCATENATE(Informations!$A$12,\" \",Informations!$A$34))","v":0}]
["Nb \"fragile\"",{"$f":"COUNTIF(EVA2PRO_MATHS!J:J,CONCATENATE(Informations!$A$12,\" \",Informations!$A$35))","v":0},{"$f":"COUNTIF(EVA2PRO_MATHS!K:K,CONCATENATE(Informations!$A$12,\" \",Informations!$A$35))","v":0},{"$f":"COUNTIF(EVA2PRO_MATHS!L:L,CONCATENATE(Informations!$A$12,\" \",Informations!$A$35))","v":0},{"$f":"COUNTIF(EVA2PRO_MATHS!M:M,CONCATENATE(Informations!$A$12,\" \",Informations!$A$35))","v":0}]
["Nb \"satisfaisant\"",{"$f":"COUNTIF(EVA2PRO_MATHS!J:J,CONCATENATE(Informations!$A$12,\" \",Informations!$A$36))","v":0},{"$f":"COUNTIF(EVA2PRO_MATHS!K:K,CONCATENATE(Informations!$A$12,\" \",Informations!$A$36))","v":0},{"$f":"COUNTIF(EVA2PRO_MATHS!L:L,CONCATENATE(Informations!$A$12,\" \",Informations!$A$36))","v":0},{"$f":"COUNTIF(EVA2PRO_MATHS!M:M,CONCATENATE(Informations!$A$12,\" \",Informations!$A$36))","v":0}]
["Total élèves évalués ",{"$f":"SUM(B91:B93)","v":0},{"$f":"SUM(C91:C93)","v":0},0,0]
[]
[{"$f":"CONCATENATE(\"Classe : \",Informations!$A$12)","v":"Classe : "},"Test spécifique en automatismes\nMobiliser directement des procédures et des connaissances","Espace et géométrie\nConnaître et utiliser des notions de géométrie","Nombres et calculs\nConnaître les nombres et les utiliser dans des calculs","Organisation et gestion de données, fonctions\nConnaître et utiliser des données et la notion de fonction"]
["Taux \"maîtrise insuffisante\"",{"$f":"B91/B$94","v":{"$error":"#DIV/0!"}},{"$f":"C91/C$94","v":{"$error":"#DIV/0!"}},{"$error":"#DIV/0!"},{"$error":"#DIV/0!"}]
["Taux \"maîtrise fragile\"",{"$f":"B92/B$94","v":{"$error":"#DIV/0!"}},{"$error":"#DIV/0!"},{"$error":"#DIV/0!"},{"$error":"#DIV/0!"}]
["Taux \"très bonne maîtrise\"",{"$f":"B93/B$94","v":{"$error":"#DIV/0!"}},{"$error":"#DIV/0!"},{"$error":"#DIV/0!"},{"$error":"#DIV/0!"}]
["Total élèves évalués ",{"$f":"B94/B$94","v":{"$error":"#DIV/0!"}},{"$error":"#DIV/0!"},{"$error":"#DIV/0!"},{"$error":"#DIV/0!"}]
[]
[]
[{"$f":"CONCATENATE(\"Classe : \",Informations!$A$13)","v":"Classe : "},"Test spécifique en automatismes\nMobiliser directement des procédures et des connaissances","Espace et géométrie\nConnaître et utiliser des notions de géométrie","Nombres et calculs\nConnaître les nombres et les utiliser dans des calculs","Organisation et gestion de données, fonctions\nConnaître et utiliser des données et la notion de fonction"]
["Nb \"à besoins\"",{"$f":"COUNTIF(EVA2PRO_MATHS!J:J,CONCATENATE(Informations!$A$13,\" \",Informations!$A$34))","v":0},{"$f":"COUNTIF(EVA2PRO_MATHS!K:K,CONCATENATE(Informations!$A$13,\" \",Informations!$A$34))","v":0},{"$f":"COUNTIF(EVA2PRO_MATHS!L:L,CONCATENATE(Informations!$A$13,\" \",Informations!$A$34))","v":0},{"$f":"COUNTIF(EVA2PRO_MATHS!M:M,CONCATENATE(Informations!$A$13,\" \",Informations!$A$34))","v":0}]
["Nb \"fragile\"",{"$f":"COUNTIF(EVA2PRO_MATHS!J:J,CONCATENATE(Informations!$A$13,\" \",Informations!$A$35))","v":0},{"$f":"COUNTIF(EVA2PRO_MATHS!K:K,CONCATENATE(Informations!$A$13,\" \",Informations!$A$35))","v":0},{"$f":"COUNTIF(EVA2PRO_MATHS!L:L,CONCATENATE(Informations!$A$13,\" \",Informations!$A$35))","v":0},{"$f":"COUNTIF(EVA2PRO_MATHS!M:M,CONCATENATE(Informations!$A$13,\" \",Informations!$A$35))","v":0}]
["Nb \"satisfaisant\"",{"$f":"COUNTIF(EVA2PRO_MATHS!J:J,CONCATENATE(Informations!$A$13,\" \",Informations!$A$36))","v":0},{"$f":"COUNTIF(EVA2PRO_MATHS!K:K,CONCATENATE(Informations!$A$13,\" \",Informations!$A$36))","v":0},{"$f":"COUNTIF(EVA2PRO_MATHS!L:L,CONCATENATE(Informations!$A$13,\" \",Informations!$A$36))","v":0},{"$f":"COUNTIF(EVA2PRO_MATHS!M:M,CONCATENATE(Informations!$A$13,\" \",Informations!$A$36))","v":0}]
["Total élèves évalués ",{"$f":"SUM(B104:B106)","v":0},{"$f":"SUM(C104:C106)","v":0},0,0]
[]
[{"$f":"CONCATENATE(\"Classe : \",Informations!$A$13)","v":"Classe : "},"Test spécifique en automatismes\nMobiliser directement des procédures et des connaissances","Espace et géométrie\nConnaître et utiliser des notions de géométrie","Nombres et calculs\nConnaître les nombres et les utiliser dans des calculs","Organisation et gestion de données, fonctions\nConnaître et utiliser des données et la notion de fonction"]
["Taux \"à besoins\"",{"$f":"B104/B$107","v":{"$error":"#DIV/0!"}},{"$f":"C104/C$107","v":{"$error":"#DIV/0!"}},{"$error":"#DIV/0!"},{"$error":"#DIV/0!"}]
["Taux \"fragile\"",{"$f":"B105/B$107","v":{"$error":"#DIV/0!"}},{"$error":"#DIV/0!"},{"$error":"#DIV/0!"},{"$error":"#DIV/0!"}]
["Taux \"satisfaisant\"",{"$f":"B106/B$107","v":{"$error":"#DIV/0!"}},{"$error":"#DIV/0!"},{"$error":"#DIV/0!"},{"$error":"#DIV/0!"}]
["Total élèves évalués ",{"$f":"B107/B$107","v":{"$error":"#DIV/0!"}},{"$error":"#DIV/0!"},{"$error":"#DIV/0!"},{"$error":"#DIV/0!"}]
[]
[]
[{"$f":"CONCATENATE(\"Classe : \",Informations!$A$14)","v":"Classe : "},"Test spécifique en automatismes\nMobiliser directement des procédures et des connaissances","Espace et géométrie\nConnaître et utiliser des notions de géométrie","Nombres et calculs\nConnaître les nombres et les utiliser dans des calculs","Organisation et gestion de données, fonctions\nConnaître et utiliser des données et la notion de fonction"]
["Nb \"à besoins\"",{"$f":"COUNTIF(EVA2PRO_MATHS!J:J,CONCATENATE(Informations!$A$14,\" \",Informations!$A$34))","v":0},{"$f":"COUNTIF(EVA2PRO_MATHS!K:K,CONCATENATE(Informations!$A$14,\" \",Informations!$A$34))","v":0},{"$f":"COUNTIF(EVA2PRO_MATHS!L:L,CONCATENATE(Informations!$A$14,\" \",Informations!$A$34))","v":0},{"$f":"COUNTIF(EVA2PRO_MATHS!M:M,CONCATENATE(Informations!$A$14,\" \",Informations!$A$34))","v":0}]
["Nb \"fragile\"",{"$f":"COUNTIF(EVA2PRO_MATHS!J:J,CONCATENATE(Informations!$A$14,\" \",Informations!$A$35))","v":0},{"$f":"COUNTIF(EVA2PRO_MATHS!K:K,CONCATENATE(Informations!$A$14,\" \",Informations!$A$35))","v":0},{"$f":"COUNTIF(EVA2PRO_MATHS!L:L,CONCATENATE(Informations!$A$14,\" \",Informations!$A$35))","v":0},{"$f":"COUNTIF(EVA2PRO_MATHS!M:M,CONCATENATE(Informations!$A$14,\" \",Informations!$A$35))","v":0}]
["Nb \"satisfaisant\"",{"$f":"COUNTIF(EVA2PRO_MATHS!J:J,CONCATENATE(Informations!$A$14,\" \",Informations!$A$36))","v":0},{"$f":"COUNTIF(EVA2PRO_MATHS!K:K,CONCATENATE(Informations!$A$14,\" \",Informations!$A$36))","v":0},{"$f":"COUNTIF(EVA2PRO_MATHS!L:L,CONCATENATE(Informations!$A$14,\" \",Informations!$A$36))","v":0},{"$f":"COUNTIF(EVA2PRO_MATHS!M:M,CONCATENATE(Informations!$A$14,\" \",Informations!$A$36))","v":0}]
["Total élèves évalués ",{"$f":"SUM(B117:B119)","v":0},{"$f":"SUM(C117:C119)","v":0},0,0]
[]
[{"$f":"CONCATENATE(\"Classe : \",Informations!$A$14)","v":"Classe : "},"Test spécifique en automatismes\nMobiliser directement des procédures et des connaissances","Espace et géométrie\nConnaître et utiliser des notions de géométrie","Nombres et calculs\nConnaître les nombres et les utiliser dans des calculs","Organisation et gestion de données, fonctions\nConnaître et utiliser des données et la notion de fonction"]
["Taux \"à besoins\"",{"$f":"B117/B$120","v":{"$error":"#DIV/0!"}},{"$f":"C117/C$120","v":{"$error":"#DIV/0!"}},{"$error":"#DIV/0!"},{"$error":"#DIV/0!"}]
["Taux \"fragile\"",{"$f":"B118/B$120","v":{"$error":"#DIV/0!"}},{"$error":"#DIV/0!"},{"$error":"#DIV/0!"},{"$error":"#DIV/0!"}]
["Taux \"satisfaisant\"",{"$f":"B119/B$120","v":{"$error":"#DIV/0!"}},{"$error":"#DIV/0!"},{"$error":"#DIV/0!"},{"$error":"#DIV/0!"}]
["Total élèves évalués ",{"$f":"B120/B$120","v":{"$error":"#DIV/0!"}},{"$error":"#DIV/0!"},{"$error":"#DIV/0!"},{"$error":"#DIV/0!"}]
[]
[]
[{"$f":"CONCATENATE(\"Classe : \",Informations!$A$15)","v":"Classe : "},"Test spécifique en automatismes\nMobiliser directement des procédures et des connaissances","Espace et géométrie\nConnaître et utiliser des notions de géométrie","Nombres et calculs\nConnaître les nombres et les utiliser dans des calculs","Organisation et gestion de données, fonctions\nConnaître et utiliser des données et la notion de fonction"]
["Nb \"à besoins\"",{"$f":"COUNTIF(EVA2PRO_MATHS!J:J,CONCATENATE(Informations!$A$15,\" \",Informations!$A$34))","v":0},{"$f":"COUNTIF(EVA2PRO_MATHS!K:K,CONCATENATE(Informations!$A$15,\" \",Informations!$A$34))","v":0},{"$f":"COUNTIF(EVA2PRO_MATHS!L:L,CONCATENATE(Informations!$A$15,\" \",Informations!$A$34))","v":0},{"$f":"COUNTIF(EVA2PRO_MATHS!M:M,CONCATENATE(Informations!$A$15,\" \",Informations!$A$34))","v":0}]
["Nb \"fragile\"",{"$f":"COUNTIF(EVA2PRO_MATHS!J:J,CONCATENATE(Informations!$A$15,\" \",Informations!$A$35))","v":0},{"$f":"COUNTIF(EVA2PRO_MATHS!K:K,CONCATENATE(Informations!$A$15,\" \",Informations!$A$35))","v":0},{"$f":"COUNTIF(EVA2PRO_MATHS!L:L,CONCATENATE(Informations!$A$15,\" \",Informations!$A$35))","v":0},{"$f":"COUNTIF(EVA2PRO_MATHS!M:M,CONCATENATE(Informations!$A$15,\" \",Informations!$A$35))","v":0}]
["Nb \"satisfaisant\"",{"$f":"COUNTIF(EVA2PRO_MATHS!J:J,CONCATENATE(Informations!$A$15,\" \",Informations!$A$36))","v":0},{"$f":"COUNTIF(EVA2PRO_MATHS!K:K,CONCATENATE(Informations!$A$15,\" \",Informations!$A$36))","v":0},{"$f":"COUNTIF(EVA2PRO_MATHS!L:L,CONCATENATE(Informations!$A$15,\" \",Informations!$A$36))","v":0},{"$f":"COUNTIF(EVA2PRO_MATHS!M:M,CONCATENATE(Informations!$A$15,\" \",Informations!$A$36))","v":0}]
["Total élèves évalués ",{"$f":"SUM(B130:B132)","v":0},{"$f":"SUM(C130:C132)","v":0},0,0]
[]
[{"$f":"CONCATENATE(\"Classe : \",Informations!$A$15)","v":"Classe : "},"Test spécifique en automatismes\nMobiliser directement des procédures et des connaissances","Espace et géométrie\nConnaître et utiliser des notions de géométrie","Nombres et calculs\nConnaître les nombres et les utiliser dans des calculs","Organisation et gestion de données, fonctions\nConnaître et utiliser des données et la notion de fonction"]
["Taux \"à besoins\"",{"$f":"B130/B$133","v":{"$error":"#DIV/0!"}},{"$f":"C130/C$133","v":{"$error":"#DIV/0!"}},{"$error":"#DIV/0!"},{"$error":"#DIV/0!"}]
["Taux \"fragile\"",{"$f":"B131/B$133","v":{"$error":"#DIV/0!"}},{"$error":"#DIV/0!"},{"$error":"#DIV/0!"},{"$error":"#DIV/0!"}]
["Taux \"satisfaisant\"",{"$f":"B132/B$133","v":{"$error":"#DIV/0!"}},{"$error":"#DIV/0!"},{"$error":"#DIV/0!"},{"$error":"#DIV/0!"}]
["Total élèves évalués ",{"$f":"B133/B$133","v":{"$error":"#DIV/0!"}},{"$error":"#DIV/0!"},{"$error":"#DIV/0!"},{"$error":"#DIV/0!"}]
[]
[]
[{"$f":"CONCATENATE(\"Classe : \",Informations!$A$16)","v":"Classe : "},"Test spécifique en automatismes\nMobiliser directement des procédures et des connaissances","Espace et géométrie\nConnaître et utiliser des notions de géométrie","Nombres et calculs\nConnaître les nombres et les utiliser dans des calculs","Organisation et gestion de données, fonctions\nConnaître et utiliser des données et la notion de fonction"]
["Nb \"à besoins\"",{"$f":"COUNTIF(EVA2PRO_MATHS!J:J,CONCATENATE(Informations!$A$16,\" \",Informations!$A$34))","v":0},{"$f":"COUNTIF(EVA2PRO_MATHS!K:K,CONCATENATE(Informations!$A$16,\" \",Informations!$A$34))","v":0},{"$f":"COUNTIF(EVA2PRO_MATHS!L:L,CONCATENATE(Informations!$A$16,\" \",Informations!$A$34))","v":0},{"$f":"COUNTIF(EVA2PRO_MATHS!M:M,CONCATENATE(Informations!$A$16,\" \",Informations!$A$34))","v":0}]
["Nb \"fragile\"",{"$f":"COUNTIF(EVA2PRO_MATHS!J:J,CONCATENATE(Informations!$A$16,\" \",Informations!$A$35))","v":0},{"$f":"COUNTIF(EVA2PRO_MATHS!K:K,CONCATENATE(Informations!$A$16,\" \",Informations!$A$35))","v":0},{"$f":"COUNTIF(EVA2PRO_MATHS!L:L,CONCATENATE(Informations!$A$16,\" \",Informations!$A$35))","v":0},{"$f":"COUNTIF(EVA2PRO_MATHS!M:M,CONCATENATE(Informations!$A$16,\" \",Informations!$A$35))","v":0}]
["Nb \"satisfaisant\"",{"$f":"COUNTIF(EVA2PRO_MATHS!J:J,CONCATENATE(Informations!$A$16,\" \",Informations!$A$36))","v":0},{"$f":"COUNTIF(EVA2PRO_MATHS!K:K,CONCATENATE(Informations!$A$16,\" \",Informations!$A$36))","v":0},{"$f":"COUNTIF(EVA2PRO_MATHS!L:L,CONCATENATE(Informations!$A$16,\" \",Informations!$A$36))","v":0},{"$f":"COUNTIF(EVA2PRO_MATHS!M:M,CONCATENATE(Informations!$A$16,\" \",Informations!$A$36))","v":0}]
["Total élèves évalués ",{"$f":"SUM(B143:B145)","v":0},{"$f":"SUM(C143:C145)","v":0},0,0]
[]
[{"$f":"CONCATENATE(\"Classe : \",Informations!$A$16)","v":"Classe : "},"Test spécifique en automatismes\nMobiliser directement des procédures et des connaissances","Espace et géométrie\nConnaître et utiliser des notions de géométrie","Nombres et calculs\nConnaître les nombres et les utiliser dans des calculs","Organisation et gestion de données, fonctions\nConnaître et utiliser des données et la notion de fonction"]
["Taux \"à besoins\"",{"$f":"B143/B$146","v":{"$error":"#DIV/0!"}},{"$f":"C143/C$146","v":{"$error":"#DIV/0!"}},{"$error":"#DIV/0!"},{"$error":"#DIV/0!"}]
["Taux \"fragile\"",{"$f":"B144/B$146","v":{"$error":"#DIV/0!"}},{"$error":"#DIV/0!"},{"$error":"#DIV/0!"},{"$error":"#DIV/0!"}]
["Taux \"satisfaisant\"",{"$f":"B145/B$146","v":{"$error":"#DIV/0!"}},{"$error":"#DIV/0!"},{"$error":"#DIV/0!"},{"$error":"#DIV/0!"}]
["Total élèves évalués ",{"$f":"B146/B$146","v":{"$error":"#DIV/0!"}},{"$error":"#DIV/0!"},{"$error":"#DIV/0!"},{"$error":"#DIV/0!"}]
[]
[]
[{"$f":"CONCATENATE(\"Classe : \",Informations!$A$17)","v":"Classe : "},"Test spécifique en automatismes\nMobiliser directement des procédures et des connaissances","Espace et géométrie\nConnaître et utiliser des notions de géométrie","Nombres et calculs\nConnaître les nombres et les utiliser dans des calculs","Organisation et gestion de données, fonctions\nConnaître et utiliser des données et la notion de fonction"]
["Nb \"à besoins\"",{"$f":"COUNTIF(EVA2PRO_MATHS!J:J,CONCATENATE(Informations!$A$17,\" \",Informations!$A$34))","v":0},{"$f":"COUNTIF(EVA2PRO_MATHS!K:K,CONCATENATE(Informations!$A$17,\" \",Informations!$A$34))","v":0},{"$f":"COUNTIF(EVA2PRO_MATHS!L:L,CONCATENATE(Informations!$A$17,\" \",Informations!$A$34))","v":0},{"$f":"COUNTIF(EVA2PRO_MATHS!M:M,CONCATENATE(Informations!$A$17,\" \",Informations!$A$34))","v":0}]
["Nb \"fragile\"",{"$f":"COUNTIF(EVA2PRO_MATHS!J:J,CONCATENATE(Informations!$A$17,\" \",Informations!$A$35))","v":0},{"$f":"COUNTIF(EVA2PRO_MATHS!K:K,CONCATENATE(Informations!$A$17,\" \",Informations!$A$35))","v":0},{"$f":"COUNTIF(EVA2PRO_MATHS!L:L,CONCATENATE(Informations!$A$17,\" \",Informations!$A$35))","v":0},{"$f":"COUNTIF(EVA2PRO_MATHS!M:M,CONCATENATE(Informations!$A$17,\" \",Informations!$A$35))","v":0}]
["Nb \"satisfaisant\"",{"$f":"COUNTIF(EVA2PRO_MATHS!J:J,CONCATENATE(Informations!$A$17,\" \",Informations!$A$36))","v":0},{"$f":"COUNTIF(EVA2PRO_MATHS!K:K,CONCATENATE(Informations!$A$17,\" \",Informations!$A$36))","v":0},{"$f":"COUNTIF(EVA2PRO_MATHS!L:L,CONCATENATE(Informations!$A$17,\" \",Informations!$A$36))","v":0},{"$f":"COUNTIF(EVA2PRO_MATHS!M:M,CONCATENATE(Informations!$A$17,\" \",Informations!$A$36))","v":0}]
["Total élèves évalués ",{"$f":"SUM(B156:B158)","v":0},{"$f":"SUM(C156:C158)","v":0},0,0]
[]
[{"$f":"CONCATENATE(\"Classe : \",Informations!$A$17)","v":"Classe : "},"Test spécifique en automatismes\nMobiliser directement des procédures et des connaissances","Espace et géométrie\nConnaître et utiliser des notions de géométrie","Nombres et calculs\nConnaître les nombres et les utiliser dans des calculs","Organisation et gestion de données, fonctions\nConnaître et utiliser des données et la notion de fonction"]
["Taux \"à besoins\"",{"$f":"B156/B$159","v":{"$error":"#DIV/0!"}},{"$f":"C156/C$159","v":{"$error":"#DIV/0!"}},{"$error":"#DIV/0!"},{"$error":"#DIV/0!"}]
["Taux \"fragile\"",{"$f":"B157/B$159","v":{"$error":"#DIV/0!"}},{"$error":"#DIV/0!"},{"$error":"#DIV/0!"},{"$error":"#DIV/0!"}]
["Taux \"satisfaisant\"",{"$f":"B158/B$159","v":{"$error":"#DIV/0!"}},{"$error":"#DIV/0!"},{"$error":"#DIV/0!"},{"$error":"#DIV/0!"}]
["Total élèves évalués ",{"$f":"B159/B$159","v":{"$error":"#DIV/0!"}},{"$error":"#DIV/0!"},{"$error":"#DIV/0!"},{"$error":"#DIV/0!"}]
[]
[]
[{"$f":"CONCATENATE(\"Classe : \",Informations!$A$18)","v":"Classe : "},"Test spécifique en automatismes\nMobiliser directement des procédures et des connaissances","Espace et géométrie\nConnaître et utiliser des notions de géométrie","Nombres et calculs\nConnaître les nombres et les utiliser dans des calculs","Organisation et gestion de données, fonctions\nConnaître et utiliser des données et la notion de fonction"]
["Nb \"à besoins\"",{"$f":"COUNTIF(EVA2PRO_MATHS!J:J,CONCATENATE(Informations!$A$18,\" \",Informations!$A$34))","v":0},{"$f":"COUNTIF(EVA2PRO_MATHS!K:K,CONCATENATE(Informations!$A$18,\" \",Informations!$A$34))","v":0},{"$f":"COUNTIF(EVA2PRO_MATHS!L:L,CONCATENATE(Informations!$A$18,\" \",Informations!$A$34))","v":0},{"$f":"COUNTIF(EVA2PRO_MATHS!M:M,CONCATENATE(Informations!$A$18,\" \",Informations!$A$34))","v":0}]
["Nb \"fragile\"",{"$f":"COUNTIF(EVA2PRO_MATHS!J:J,CONCATENATE(Informations!$A$18,\" \",Informations!$A$35))","v":0},{"$f":"COUNTIF(EVA2PRO_MATHS!K:K,CONCATENATE(Informations!$A$18,\" \",Informations!$A$35))","v":0},{"$f":"COUNTIF(EVA2PRO_MATHS!L:L,CONCATENATE(Informations!$A$18,\" \",Informations!$A$35))","v":0},{"$f":"COUNTIF(EVA2PRO_MATHS!M:M,CONCATENATE(Informations!$A$18,\" \",Informations!$A$35))","v":0}]
["Nb \"satisfaisant\"",{"$f":"COUNTIF(EVA2PRO_MATHS!J:J,CONCATENATE(Informations!$A$18,\" \",Informations!$A$36))","v":0},{"$f":"COUNTIF(EVA2PRO_MATHS!K:K,CONCATENATE(Informations!$A$18,\" \",Informations!$A$36))","v":0},{"$f":"COUNTIF(EVA2PRO_MATHS!L:L,CONCATENATE(Informations!$A$18,\" \",Informations!$A$36))","v":0},{"$f":"COUNTIF(EVA2PRO_MATHS!M:M,CONCATENATE(Informations!$A$18,\" \",Informations!$A$36))","v":0}]
["Total élèves évalués ",{"$f":"SUM(B169:B171)","v":0},{"$f":"SUM(C169:C171)","v":0},0,0]
[]
[{"$f":"CONCATENATE(\"Classe : \",Informations!$A$18)","v":"Classe : "},"Test spécifique en automatismes\nMobiliser directement des procédures et des connaissances","Espace et géométrie\nConnaître et utiliser des notions de géométrie","Nombres et calculs\nConnaître les nombres et les utiliser dans des calculs","Organisation et gestion de données, fonctions\nConnaître et utiliser des données et la notion de fonction"]
["Taux \"à besoins\"",{"$f":"B169/B$172","v":{"$error":"#DIV/0!"}},{"$f":"C169/C$172","v":{"$error":"#DIV/0!"}},{"$error":"#DIV/0!"},{"$error":"#DIV/0!"}]
["Taux \"fragile\"",{"$f":"B170/B$172","v":{"$error":"#DIV/0!"}},{"$error":"#DIV/0!"},{"$error":"#DIV/0!"},{"$error":"#DIV/0!"}]
["Taux \"satisfaisant\"",{"$f":"B171/B$172","v":{"$error":"#DIV/0!"}},{"$error":"#DIV/0!"},{"$error":"#DIV/0!"},{"$error":"#DIV/0!"}]
["Total élèves évalués ",{"$error":"#DIV/0!"},{"$error":"#DIV/0!"},{"$error":"#DIV/0!"},{"$error":"#DIV/0!"}]
[]
[]
[{"$f":"CONCATENATE(\"Classe : \",Informations!$A$19)","v":"Classe : "},"Test spécifique en automatismes\nMobiliser directement des procédures et des connaissances","Espace et géométrie\nConnaître et utiliser des notions de géométrie","Nombres et calculs\nConnaître les nombres et les utiliser dans des calculs","Organisation et gestion de données, fonctions\nConnaître et utiliser des données et la notion de fonction"]
["Nb \"à besoins\"",{"$f":"COUNTIF(EVA2PRO_MATHS!J:J,CONCATENATE(Informations!$A$19,\" \",Informations!$A$34))","v":0},{"$f":"COUNTIF(EVA2PRO_MATHS!K:K,CONCATENATE(Informations!$A$19,\" \",Informations!$A$34))","v":0},{"$f":"COUNTIF(EVA2PRO_MATHS!L:L,CONCATENATE(Informations!$A$19,\" \",Informations!$A$34))","v":0},{"$f":"COUNTIF(EVA2PRO_MATHS!M:M,CONCATENATE(Informations!$A$19,\" \",Informations!$A$34))","v":0}]
["Nb \"fragile\"",{"$f":"COUNTIF(EVA2PRO_MATHS!J:J,CONCATENATE(Informations!$A$19,\" \",Informations!$A$35))","v":0},{"$f":"COUNTIF(EVA2PRO_MATHS!K:K,CONCATENATE(Informations!$A$19,\" \",Informations!$A$35))","v":0},{"$f":"COUNTIF(EVA2PRO_MATHS!L:L,CONCATENATE(Informations!$A$19,\" \",Informations!$A$35))","v":0},{"$f":"COUNTIF(EVA2PRO_MATHS!M:M,CONCATENATE(Informations!$A$19,\" \",Informations!$A$35))","v":0}]
["Nb \"satisfaisant\"",{"$f":"COUNTIF(EVA2PRO_MATHS!J:J,CONCATENATE(Informations!$A$19,\" \",Informations!$A$36))","v":0},{"$f":"COUNTIF(EVA2PRO_MATHS!K:K,CONCATENATE(Informations!$A$19,\" \",Informations!$A$36))","v":0},{"$f":"COUNTIF(EVA2PRO_MATHS!L:L,CONCATENATE(Informations!$A$19,\" \",Informations!$A$36))","v":0},{"$f":"COUNTIF(EVA2PRO_MATHS!M:M,CONCATENATE(Informations!$A$19,\" \",Informations!$A$36))","v":0}]
["Total élèves évalués ",{"$f":"SUM(B182:B184)","v":0},{"$f":"SUM(C182:C184)","v":0},0,0]
[]
[{"$f":"CONCATENATE(\"Classe : \",Informations!$A$19)","v":"Classe : "},"Test spécifique en automatismes\nMobiliser directement des procédures et des connaissances","Espace et géométrie\nConnaître et utiliser des notions de géométrie","Nombres et calculs\nConnaître les nombres et les utiliser dans des calculs","Organisation et gestion de données, fonctions\nConnaître et utiliser des données et la notion de fonction"]
["Taux \"à besoins\"",{"$f":"B182/B$185","v":{"$error":"#DIV/0!"}},{"$f":"C182/C$185","v":{"$error":"#DIV/0!"}},{"$error":"#DIV/0!"},{"$error":"#DIV/0!"}]
["Taux \"fragile\"",{"$f":"B183/B$185","v":{"$error":"#DIV/0!"}},{"$error":"#DIV/0!"},{"$error":"#DIV/0!"},{"$error":"#DIV/0!"}]
["Taux \"satisfaisant\"",{"$f":"B184/B$185","v":{"$error":"#DIV/0!"}},{"$error":"#DIV/0!"},{"$error":"#DIV/0!"},{"$error":"#DIV/0!"}]
["Total élèves évalués ",{"$f":"B185/B$185","v":{"$error":"#DIV/0!"}},{"$error":"#DIV/0!"},{"$error":"#DIV/0!"},{"$error":"#DIV/0!"}]
[]
[]
[{"$f":"CONCATENATE(\"Classe : \",Informations!$A$20)","v":"Classe : "},"Test spécifique en automatismes\nMobiliser directement des procédures et des connaissances","Espace et géométrie\nConnaître et utiliser des notions de géométrie","Nombres et calculs\nConnaître les nombres et les utiliser dans des calculs","Organisation et gestion de données, fonctions\nConnaître et utiliser des données et la notion de fonction"]
["Nb \"à besoins\"",{"$f":"COUNTIF(EVA2PRO_MATHS!J:J,CONCATENATE(Informations!$A$20,\" \",Informations!$A$34))","v":0},{"$f":"COUNTIF(EVA2PRO_MATHS!K:K,CONCATENATE(Informations!$A$20,\" \",Informations!$A$34))","v":0},{"$f":"COUNTIF(EVA2PRO_MATHS!L:L,CONCATENATE(Informations!$A$20,\" \",Informations!$A$34))","v":0},{"$f":"COUNTIF(EVA2PRO_MATHS!M:M,CONCATENATE(Informations!$A$20,\" \",Informations!$A$34))","v":0}]
["Nb \"fragile\"",{"$f":"COUNTIF(EVA2PRO_MATHS!J:J,CONCATENATE(Informations!$A$20,\" \",Informations!$A$35))","v":0},{"$f":"COUNTIF(EVA2PRO_MATHS!K:K,CONCATENATE(Informations!$A$20,\" \",Informations!$A$35))","v":0},{"$f":"COUNTIF(EVA2PRO_MATHS!L:L,CONCATENATE(Informations!$A$20,\" \",Informations!$A$35))","v":0},{"$f":"COUNTIF(EVA2PRO_MATHS!M:M,CONCATENATE(Informations!$A$20,\" \",Informations!$A$35))","v":0}]
["Nb \"satisfaisant\"",{"$f":"COUNTIF(EVA2PRO_MATHS!J:J,CONCATENATE(Informations!$A$20,\" \",Informations!$A$36))","v":0},{"$f":"COUNTIF(EVA2PRO_MATHS!K:K,CONCATENATE(Informations!$A$20,\" \",Informations!$A$36))","v":0},{"$f":"COUNTIF(EVA2PRO_MATHS!L:L,CONCATENATE(Informations!$A$20,\" \",Informations!$A$36))","v":0},{"$f":"COUNTIF(EVA2PRO_MATHS!M:M,CONCATENATE(Informations!$A$20,\" \",Informations!$A$36))","v":0}]
["Total élèves évalués ",{"$f":"SUM(B195:B197)","v":0},{"$f":"SUM(C195:C197)","v":0},0,0]
[]
[{"$f":"CONCATENATE(\"Classe : \",Informations!$A$20)","v":"Classe : "},"Test spécifique en automatismes\nMobiliser directement des procédures et des connaissances","Espace et géométrie\nConnaître et utiliser des notions de géométrie","Nombres et calculs\nConnaître les nombres et les utiliser dans des calculs","Organisation et gestion de données, fonctions\nConnaître et utiliser des données et la notion de fonction"]
["Taux \"à besoins\"",{"$f":"B195/B$198","v":{"$error":"#DIV/0!"}},{"$f":"C195/C$198","v":{"$error":"#DIV/0!"}},{"$error":"#DIV/0!"},{"$error":"#DIV/0!"}]
["Taux \"fragile\"",{"$f":"B196/B$198","v":{"$error":"#DIV/0!"}},{"$error":"#DIV/0!"},{"$error":"#DIV/0!"},{"$error":"#DIV/0!"}]
["Taux \"satisfaisant\"",{"$f":"B197/B$198","v":{"$error":"#DIV/0!"}},{"$error":"#DIV/0!"},{"$error":"#DIV/0!"},{"$error":"#DIV/0!"}]
["Total élèves évalués ",{"$f":"B198/B$198","v":{"$error":"#DIV/0!"}},{"$error":"#DIV/0!"},{"$error":"#DIV/0!"},{"$error":"#DIV/0!"}]
[]
[]
[{"$f":"CONCATENATE(\"Classe : \",Informations!$A$21)","v":"Classe : "},"Test spécifique en automatismes\nMobiliser directement des procédures et des connaissances","Espace et géométrie\nConnaître et utiliser des notions de géométrie","Nombres et calculs\nConnaître les nombres et les utiliser dans des calculs","Organisation et gestion de données, fonctions\nConnaître et utiliser des données et la notion de fonction"]
["Nb \"à besoins\"",{"$f":"COUNTIF(EVA2PRO_MATHS!J:J,CONCATENATE(Informations!$A$21,\" \",Informations!$A$34))","v":0},{"$f":"COUNTIF(EVA2PRO_MATHS!K:K,CONCATENATE(Informations!$A$21,\" \",Informations!$A$34))","v":0},{"$f":"COUNTIF(EVA2PRO_MATHS!L:L,CONCATENATE(Informations!$A$21,\" \",Informations!$A$34))","v":0},{"$f":"COUNTIF(EVA2PRO_MATHS!M:M,CONCATENATE(Informations!$A$21,\" \",Informations!$A$34))","v":0}]
["Nb \"fragile\"",{"$f":"COUNTIF(EVA2PRO_MATHS!J:J,CONCATENATE(Informations!$A$21,\" \",Informations!$A$35))","v":0},{"$f":"COUNTIF(EVA2PRO_MATHS!K:K,CONCATENATE(Informations!$A$21,\" \",Informations!$A$35))","v":0},{"$f":"COUNTIF(EVA2PRO_MATHS!L:L,CONCATENATE(Informations!$A$21,\" \",Informations!$A$35))","v":0},{"$f":"COUNTIF(EVA2PRO_MATHS!M:M,CONCATENATE(Informations!$A$21,\" \",Informations!$A$35))","v":0}]
["Nb \"satisfaisant\"",{"$f":"COUNTIF(EVA2PRO_MATHS!J:J,CONCATENATE(Informations!$A$21,\" \",Informations!$A$36))","v":0},{"$f":"COUNTIF(EVA2PRO_MATHS!K:K,CONCATENATE(Informations!$A$21,\" \",Informations!$A$36))","v":0},{"$f":"COUNTIF(EVA2PRO_MATHS!L:L,CONCATENATE(Informations!$A$21,\" \",Informations!$A$36))","v":0},{"$f":"COUNTIF(EVA2PRO_MATHS!M:M,CONCATENATE(Informations!$A$21,\" \",Informations!$A$36))","v":0}]
["Total élèves évalués ",{"$f":"SUM(B208:B210)","v":0},{"$f":"SUM(C208:C210)","v":0},0,0]
[]
[{"$f":"CONCATENATE(\"Classe : \",Informations!$A$21)","v":"Classe : "},"Test spécifique en automatismes\nMobiliser directement des procédures et des connaissances","Espace et géométrie\nConnaître et utiliser des notions de géométrie","Nombres et calculs\nConnaître les nombres et les utiliser dans des calculs","Organisation et gestion de données, fonctions\nConnaître et utiliser des données et la notion de fonction"]
["Taux \"à besoins\"",{"$f":"B208/B$211","v":{"$error":"#DIV/0!"}},{"$f":"C208/C$211","v":{"$error":"#DIV/0!"}},{"$error":"#DIV/0!"},{"$error":"#DIV/0!"}]
["Taux \"fragile\"",{"$f":"B209/B$211","v":{"$error":"#DIV/0!"}},{"$error":"#DIV/0!"},{"$error":"#DIV/0!"},{"$error":"#DIV/0!"}]
["Taux \"satisfaisant\"",{"$f":"B210/B$211","v":{"$error":"#DIV/0!"}},{"$error":"#DIV/0!"},{"$error":"#DIV/0!"},{"$error":"#DIV/0!"}]
["Total élèves évalués ",{"$f":"B211/B$211","v":{"$error":"#DIV/0!"}},{"$error":"#DIV/0!"},{"$error":"#DIV/0!"},{"$error":"#DIV/0!"}]
[]
[]
[{"$f":"CONCATENATE(\"Classe : \",Informations!$A$22)","v":"Classe : "},"Test spécifique en automatismes\nMobiliser directement des procédures et des connaissances","Espace et géométrie\nConnaître et utiliser des notions de géométrie","Nombres et calculs\nConnaître les nombres et les utiliser dans des calculs","Organisation et gestion de données, fonctions\nConnaître et utiliser des données et la notion de fonction"]
["Nb \"à besoins\"",{"$f":"COUNTIF(EVA2PRO_MATHS!J:J,CONCATENATE(Informations!$A$22,\" \",Informations!$A$34))","v":0},{"$f":"COUNTIF(EVA2PRO_MATHS!K:K,CONCATENATE(Informations!$A$22,\" \",Informations!$A$34))","v":0},{"$f":"COUNTIF(EVA2PRO_MATHS!L:L,CONCATENATE(Informations!$A$22,\" \",Informations!$A$34))","v":0},{"$f":"COUNTIF(EVA2PRO_MATHS!M:M,CONCATENATE(Informations!$A$22,\" \",Informations!$A$34))","v":0}]
["Nb \"fragile\"",{"$f":"COUNTIF(EVA2PRO_MATHS!J:J,CONCATENATE(Informations!$A$22,\" \",Informations!$A$35))","v":0},{"$f":"COUNTIF(EVA2PRO_MATHS!K:K,CONCATENATE(Informations!$A$22,\" \",Informations!$A$35))","v":0},{"$f":"COUNTIF(EVA2PRO_MATHS!L:L,CONCATENATE(Informations!$A$22,\" \",Informations!$A$35))","v":0},{"$f":"COUNTIF(EVA2PRO_MATHS!M:M,CONCATENATE(Informations!$A$22,\" \",Informations!$A$35))","v":0}]
["Nb \"satisfaisant\"",{"$f":"COUNTIF(EVA2PRO_MATHS!J:J,CONCATENATE(Informations!$A$22,\" \",Informations!$A$36))","v":0},{"$f":"COUNTIF(EVA2PRO_MATHS!K:K,CONCATENATE(Informations!$A$22,\" \",Informations!$A$36))","v":0},{"$f":"COUNTIF(EVA2PRO_MATHS!L:L,CONCATENATE(Informations!$A$22,\" \",Informations!$A$36))","v":0},{"$f":"COUNTIF(EVA2PRO_MATHS!M:M,CONCATENATE(Informations!$A$22,\" \",Informations!$A$36))","v":0}]
["Total élèves évalués ",{"$f":"SUM(B221:B223)","v":0},{"$f":"SUM(C221:C223)","v":0},0,0]
[]
[{"$f":"CONCATENATE(\"Classe : \",Informations!$A$22)","v":"Classe : "},"Test spécifique en automatismes\nMobiliser directement des procédures et des connaissances","Espace et géométrie\nConnaître et utiliser des notions de géométrie","Nombres et calculs\nConnaître les nombres et les utiliser dans des calculs","Organisation et gestion de données, fonctions\nConnaître et utiliser des données et la notion de fonction"]
["Taux \"à besoins\"",{"$f":"B221/B$224","v":{"$error":"#DIV/0!"}},{"$f":"C221/C$224","v":{"$error":"#DIV/0!"}},{"$error":"#DIV/0!"},{"$error":"#DIV/0!"}]
["Taux \"fragile\"",{"$f":"B222/B$224","v":{"$error":"#DIV/0!"}},{"$error":"#DIV/0!"},{"$error":"#DIV/0!"},{"$error":"#DIV/0!"}]
["Taux \"satisfaisant\"",{"$f":"B223/B$224","v":{"$error":"#DIV/0!"}},{"$error":"#DIV/0!"},{"$error":"#DIV/0!"},{"$error":"#DIV/0!"}]
["Total élèves évalués ",{"$f":"B224/B$224","v":{"$error":"#DIV/0!"}},{"$error":"#DIV/0!"},{"$error":"#DIV/0!"},{"$error":"#DIV/0!"}]
[]
[]
[{"$f":"CONCATENATE(\"Classe : \",Informations!$A$23)","v":"Classe : "},"Test spécifique en automatismes\nMobiliser directement des procédures et des connaissances","Espace et géométrie\nConnaître et utiliser des notions de géométrie","Nombres et calculs\nConnaître les nombres et les utiliser dans des calculs","Organisation et gestion de données, fonctions\nConnaître et utiliser des données et la notion de fonction"]
["Nb \"à besoins\"",{"$f":"COUNTIF(EVA2PRO_MATHS!J:J,CONCATENATE(Informations!$A$23,\" \",Informations!$A$34))","v":0},{"$f":"COUNTIF(EVA2PRO_MATHS!K:K,CONCATENATE(Informations!$A$23,\" \",Informations!$A$34))","v":0},{"$f":"COUNTIF(EVA2PRO_MATHS!L:L,CONCATENATE(Informations!$A$23,\" \",Informations!$A$34))","v":0},{"$f":"COUNTIF(EVA2PRO_MATHS!M:M,CONCATENATE(Informations!$A$23,\" \",Informations!$A$34))","v":0}]
["Nb \"fragile\"",{"$f":"COUNTIF(EVA2PRO_MATHS!J:J,CONCATENATE(Informations!$A$23,\" \",Informations!$A$35))","v":0},{"$f":"COUNTIF(EVA2PRO_MATHS!K:K,CONCATENATE(Informations!$A$23,\" \",Informations!$A$35))","v":0},{"$f":"COUNTIF(EVA2PRO_MATHS!L:L,CONCATENATE(Informations!$A$23,\" \",Informations!$A$35))","v":0},{"$f":"COUNTIF(EVA2PRO_MATHS!M:M,CONCATENATE(Informations!$A$23,\" \",Informations!$A$35))","v":0}]
["Nb \"satisfaisant\"",{"$f":"COUNTIF(EVA2PRO_MATHS!J:J,CONCATENATE(Informations!$A$23,\" \",Informations!$A$36))","v":0},{"$f":"COUNTIF(EVA2PRO_MATHS!K:K,CONCATENATE(Informations!$A$23,\" \",Informations!$A$36))","v":0},{"$f":"COUNTIF(EVA2PRO_MATHS!L:L,CONCATENATE(Informations!$A$23,\" \",Informations!$A$36))","v":0},{"$f":"COUNTIF(EVA2PRO_MATHS!M:M,CONCATENATE(Informations!$A$23,\" \",Informations!$A$36))","v":0}]
["Total élèves évalués ",{"$f":"SUM(B234:B236)","v":0},{"$f":"SUM(C234:C236)","v":0},0,0]
[]
[{"$f":"CONCATENATE(\"Classe : \",Informations!$A$23)","v":"Classe : "},"Test spécifique en automatismes\nMobiliser directement des procédures et des connaissances","Espace et géométrie\nConnaître et utiliser des notions de géométrie","Nombres et calculs\nConnaître les nombres et les utiliser dans des calculs","Organisation et gestion de données, fonctions\nConnaître et utiliser des données et la notion de fonction"]
["Taux \"à besoins\"",{"$f":"B234/B$237","v":{"$error":"#DIV/0!"}},{"$f":"C234/C$237","v":{"$error":"#DIV/0!"}},{"$error":"#DIV/0!"},{"$error":"#DIV/0!"}]
["Taux \"fragile\"",{"$f":"B235/B$237","v":{"$error":"#DIV/0!"}},{"$error":"#DIV/0!"},{"$error":"#DIV/0!"},{"$error":"#DIV/0!"}]
["Taux \"satisfaisant\"",{"$f":"B236/B$237","v":{"$error":"#DIV/0!"}},{"$error":"#DIV/0!"},{"$error":"#DIV/0!"},{"$error":"#DIV/0!"}]
["Total élèves évalués ",{"$f":"B237/B$237","v":{"$error":"#DIV/0!"}},{"$error":"#DIV/0!"},{"$error":"#DIV/0!"},{"$error":"#DIV/0!"}]
[]
[]
[{"$f":"CONCATENATE(\"Classe : \",Informations!$A$24)","v":"Classe : "},"Test spécifique en automatismes\nMobiliser directement des procédures et des connaissances","Espace et géométrie\nConnaître et utiliser des notions de géométrie","Nombres et calculs\nConnaître les nombres et les utiliser dans des calculs","Organisation et gestion de données, fonctions\nConnaître et utiliser des données et la notion de fonction"]
["Nb \"à besoins\"",{"$f":"COUNTIF(EVA2PRO_MATHS!J:J,CONCATENATE(Informations!$A$24,\" \",Informations!$A$34))","v":0},{"$f":"COUNTIF(EVA2PRO_MATHS!K:K,CONCATENATE(Informations!$A$24,\" \",Informations!$A$34))","v":0},{"$f":"COUNTIF(EVA2PRO_MATHS!L:L,CONCATENATE(Informations!$A$24,\" \",Informations!$A$34))","v":0},{"$f":"COUNTIF(EVA2PRO_MATHS!M:M,CONCATENATE(Informations!$A$24,\" \",Informations!$A$34))","v":0}]
["Nb \"fragile\"",{"$f":"COUNTIF(EVA2PRO_MATHS!J:J,CONCATENATE(Informations!$A$24,\" \",Informations!$A$35))","v":0},{"$f":"COUNTIF(EVA2PRO_MATHS!K:K,CONCATENATE(Informations!$A$24,\" \",Informations!$A$35))","v":0},{"$f":"COUNTIF(EVA2PRO_MATHS!L:L,CONCATENATE(Informations!$A$24,\" \",Informations!$A$35))","v":0},{"$f":"COUNTIF(EVA2PRO_MATHS!M:M,CONCATENATE(Informations!$A$24,\" \",Informations!$A$35))","v":0}]
["Nb \"satisfaisant\"",{"$f":"COUNTIF(EVA2PRO_MATHS!J:J,CONCATENATE(Informations!$A$24,\" \",Informations!$A$36))","v":0},{"$f":"COUNTIF(EVA2PRO_MATHS!K:K,CONCATENATE(Informations!$A$24,\" \",Informations!$A$36))","v":0},{"$f":"COUNTIF(EVA2PRO_MATHS!L:L,CONCATENATE(Informations!$A$24,\" \",Informations!$A$36))","v":0},{"$f":"COUNTIF(EVA2PRO_MATHS!M:M,CONCATENATE(Informations!$A$24,\" \",Informations!$A$36))","v":0}]
["Total élèves évalués ",{"$f":"SUM(B247:B249)","v":0},{"$f":"SUM(C247:C249)","v":0},0,0]
[]
[{"$f":"CONCATENATE(\"Classe : \",Informations!$A$24)","v":"Classe : "},"Test spécifique en automatismes\nMobiliser directement des procédures et des connaissances","Espace et géométrie\nConnaître et utiliser des notions de géométrie","Nombres et calculs\nConnaître les nombres et les utiliser dans des calculs","Organisation et gestion de données, fonctions\nConnaître et utiliser des données et la notion de fonction"]
["Taux \"à besoins\"",{"$f":"B247/B$250","v":{"$error":"#DIV/0!"}},{"$f":"C247/C$250","v":{"$error":"#DIV/0!"}},{"$error":"#DIV/0!"},{"$error":"#DIV/0!"}]
["Taux \"fragile\"",{"$f":"B248/B$250","v":{"$error":"#DIV/0!"}},{"$error":"#DIV/0!"},{"$error":"#DIV/0!"},{"$error":"#DIV/0!"}]
["Taux \"satisfaisant\"",{"$f":"B249/B$250","v":{"$error":"#DIV/0!"}},{"$error":"#DIV/0!"},{"$error":"#DIV/0!"},{"$error":"#DIV/0!"}]
["Total élèves évalués ",{"$f":"B250/B$250","v":{"$error":"#DIV/0!"}},{"$error":"#DIV/0!"},{"$error":"#DIV/0!"},{"$error":"#DIV/0!"}]
[]
[]
[{"$f":"CONCATENATE(\"Classe : \",Informations!$A$25)","v":"Classe : "},"Test spécifique en automatismes\nMobiliser directement des procédures et des connaissances","Espace et géométrie\nConnaître et utiliser des notions de géométrie","Nombres et calculs\nConnaître les nombres et les utiliser dans des calculs","Organisation et gestion de données, fonctions\nConnaître et utiliser des données et la notion de fonction"]
["Nb \"à besoins\"",{"$f":"COUNTIF(EVA2PRO_MATHS!J:J,CONCATENATE(Informations!$A$25,\" \",Informations!$A$34))","v":0},{"$f":"COUNTIF(EVA2PRO_MATHS!K:K,CONCATENATE(Informations!$A$25,\" \",Informations!$A$34))","v":0},{"$f":"COUNTIF(EVA2PRO_MATHS!L:L,CONCATENATE(Informations!$A$25,\" \",Informations!$A$34))","v":0},{"$f":"COUNTIF(EVA2PRO_MATHS!M:M,CONCATENATE(Informations!$A$25,\" \",Informations!$A$34))","v":0}]
["Nb \"fragile\"",{"$f":"COUNTIF(EVA2PRO_MATHS!J:J,CONCATENATE(Informations!$A$25,\" \",Informations!$A$35))","v":0},{"$f":"COUNTIF(EVA2PRO_MATHS!K:K,CONCATENATE(Informations!$A$25,\" \",Informations!$A$35))","v":0},{"$f":"COUNTIF(EVA2PRO_MATHS!L:L,CONCATENATE(Informations!$A$25,\" \",Informations!$A$35))","v":0},{"$f":"COUNTIF(EVA2PRO_MATHS!M:M,CONCATENATE(Informations!$A$25,\" \",Informations!$A$35))","v":0}]
["Nb \"satisfaisant\"",{"$f":"COUNTIF(EVA2PRO_MATHS!J:J,CONCATENATE(Informations!$A$25,\" \",Informations!$A$36))","v":0},{"$f":"COUNTIF(EVA2PRO_MATHS!K:K,CONCATENATE(Informations!$A$25,\" \",Informations!$A$36))","v":0},{"$f":"COUNTIF(EVA2PRO_MATHS!L:L,CONCATENATE(Informations!$A$25,\" \",Informations!$A$36))","v":0},{"$f":"COUNTIF(EVA2PRO_MATHS!M:M,CONCATENATE(Informations!$A$25,\" \",Informations!$A$36))","v":0}]
["Total élèves évalués ",{"$f":"SUM(B260:B262)","v":0},{"$f":"SUM(C260:C262)","v":0},0,0]
[]
[{"$f":"CONCATENATE(\"Classe : \",Informations!$A$25)","v":"Classe : "},"Test spécifique en automatismes\nMobiliser directement des procédures et des connaissances","Espace et géométrie\nConnaître et utiliser des notions de géométrie","Nombres et calculs\nConnaître les nombres et les utiliser dans des calculs","Organisation et gestion de données, fonctions\nConnaître et utiliser des données et la notion de fonction"]
["Taux \"à besoins\"",{"$f":"B260/B$263","v":{"$error":"#DIV/0!"}},{"$f":"C260/C$263","v":{"$error":"#DIV/0!"}},{"$error":"#DIV/0!"},{"$error":"#DIV/0!"}]
["Taux \"fragile\"",{"$f":"B261/B$263","v":{"$error":"#DIV/0!"}},{"$error":"#DIV/0!"},{"$error":"#DIV/0!"},{"$error":"#DIV/0!"}]
["Taux \"satisfaisant\"",{"$f":"B262/B$263","v":{"$error":"#DIV/0!"}},{"$error":"#DIV/0!"},{"$error":"#DIV/0!"},{"$error":"#DIV/0!"}]
["Total élèves évalués ",{"$f":"B263/B$263","v":{"$error":"#DIV/0!"}},{"$error":"#DIV/0!"},{"$error":"#DIV/0!"},{"$error":"#DIV/0!"}]

{"sheet":"EVA2PRO_FRANCAIS","index":4,"n_rows":0,"n_cols":0,"rows_kept":0}

{"sheet":"EVA2PRO_MATHS","index":5,"n_rows":0,"n_cols":0,"rows_kept":0}